{"text_format":"1","workbook":"xlsx","n_sheets":6,"sheets":["表紙","自己採点シート","学習自己点検シート ","単位修得状況確認表（共通教育科目，一般学生）","単位修得状況確認表（専門教育科目）","累積グラフ"],"not_rendered":{"charts":10,"images":3,"macros":1,"external_links":0,"defined_names":17,"comments":0,"pivot_tables":0},"unopened":[],"bounds":{"document_bytes":16777216,"sheet_cells":100000,"rows_first":2000,"rows_last":500,"rows_between":2000,"halvings":0,"cell_chars":16384,"cell_head_chars":4096},"cells_cut":0,"cells_raw":0,"read":"whole","date_system":"1900"}

{"sheet":"表紙","index":0,"n_rows":35,"n_cols":2,"rows_kept":35,"cut":false,"hidden":false,"merged":[]}
[]
[]
[]
[]
[]
[]
[]
[]
[]
[]
[]
[null,"鹿児島大学工学部ポートフォリオ"]
[]
[]
[]
[]
[]
[]
[]
[]
[]
[]
[]
[]
[]
[]
[]
[]
[]
[]
[]
[null,"入学年度：平成31年度"]
[null,"学科：海洋土木工学科"]
[null,"氏名："]
[null,"学籍番号："]

{"sheet":"自己採点シート","index":1,"n_rows":22,"n_cols":21,"rows_kept":22,"cut":false,"hidden":false,"merged":[[12,2,12,5],[3,10,3,11],[3,19,3,20],[9,2,9,5],[10,2,10,5],[11,2,11,5],[19,2,19,5],[20,2,20,5],[21,2,21,5],[13,2,13,5],[14,2,14,5],[15,2,15,5],[16,2,16,5],[17,2,17,5],[18,2,18,5]]}
[]
[null,"自己採点シート"]
[]
[null,null,null,null,null,null,null,null,null,"学籍番号",null,null,"氏名"]
[]
[null,"■学生のみなさんへ"]
[null,null,"今期受講した科目に関して、以下の項目に対して自己採点をしてください。(１０点満点)"]
[]
[]
[null,null,"項目",null,null,null,"2019年度\n前期","2019年度\n後期","2020年度\n前期","2020年度\n後期","2021年度\n前期","2021年度\n後期","2022年度\n前期","2022年度\n後期","2023年度\n前期","2023年度\n後期","2024年度\n前期","2024年度\n後期","2025年度\n前期","2025年度\n後期","卒業時"]
[null,1,"工学に関しての基礎知識\n（物理・化学・数学・情報など）"]
[null,2,"各工学分野での基礎知識\n（専門科目など）"]
[null,3,"人前での発表能力"]
[null,4,"人と話し合ったり議論する能力"]
[null,5,"チームの一員として取り組める（チームワーク）能力"]
[null,6,"英語、その他外国語による表現力"]
[null,7,"読書、講習会への参加、英会話や情報処理学習など大学以外での学習による自己啓発・生涯学習能力"]
[null,8,"社会性や国際感覚が身についているか。"]
[null,9,"倫理観、責任感が身についているか。"]
[null,10]
[null,11]
[null,12]

{"sheet":"学習自己点検シート ","index":2,"n_rows":68,"n_cols":13,"rows_kept":68,"cut":false,"hidden":false,"merged":[[4,8,4,9],[4,11,4,12],[7,2,7,12]]}
[]
[null,null,null,null,null,null,null,null,null,null,null,"年度","期"]
[null,"学習自己点検シート"]
[]
[null,null,null,null,null,null,null,"学籍番号",null,null,"氏名"]
[]
[null,"■学生のみなさんへ"]
[null,null,"学生生活全般に関して自己点検をお願いしています。今期受講した科目に関して、以下の質問項目に答えてください。面談時、指導教員（アドバイザー）の先生方から回答に対する具体的なアドバイスを受けてください。"]
[]
[]
[null,"■回答項目"]
[]
[null,1,"今期の目標は達成できましたか。"]
[]
[]
[]
[]
[null,2,"講義への取り組みは積極的でしたか。また、積極的に取り組むことができなかった講義は具体的に何ですか。"]
[]
[]
[]
[]
[null,3,"講義毎に勉強方法がつかめていますか。"]
[]
[]
[]
[]
[null,4,"それぞれの講義の理解度は自分の目標に達していますか。理解度が足りないと感じている講義は何ですか。"]
[]
[]
[]
[]
[null,5,"平日（試験勉強以外）１日当たりの勉強時間（平均）はどのくらいですか。勉強時間が足りないと感じている講義は何ですか。"]
[]
[]
[]
[]
[null,6,"アルバイトと勉強は両立できましたか。"]
[]
[]
[]
[]
[null,7,"サークル活動と勉強は両立できましたか。"]
[]
[]
[]
[]
[null,8,"卒業後の進路についてどのように考えていますか。"]
[]
[]
[]
[]
[null,9,"その他、アドバイスが必要なことはありますか。"]
[]
[]
[]
[]
[null,10]
[]
[]
[]
[]
[null,11]
[]
[]
[]
[]
[null,12]

{"sheet":"単位修得状況確認表（共通教育科目，一般学生）","index":3,"n_rows":37,"n_cols":49,"rows_kept":37,"cut":false,"hidden":false,"merged":[[26,27,26,28],[25,31,25,32],[25,33,25,34],[25,35,25,36],[25,37,25,38],[26,29,26,30],[27,35,27,36],[27,37,27,38],[26,31,26,32],[26,33,26,34],[26,35,26,36],[26,37,26,38],[27,15,27,16],[27,17,27,18],[27,19,27,20],[27,21,27,22],[27,23,27,24],[27,0,27,6],[27,7,27,8],[27,9,27,10],[27,11,27,12],[27,13,27,14],[27,25,27,26],[27,27,27,28],[27,29,27,30],[27,31,27,32],[27,33,27,34],[1,0,1,41],[2,0,5,6],[2,7,2,38],[2,39,5,39],[2,40,5,40],[2,41,5,41],[4,7,4,8],[4,9,4,10],[4,11,4,12],[4,13,4,14],[4,37,4,38],[4,15,4,16],[4,17,4,18],[4,19,4,20],[4,21,4,22],[4,23,4,24],[3,7,3,10],[3,11,3,14],[3,15,3,18],[3,19,3,22],[3,23,3,26],[4,25,4,26],[3,27,3,30],[3,31,3,34],[3,35,3,38],[4,35,4,36],[4,27,4,28],[4,29,4,30],[4,31,4,32],[4,33,4,34],[22,0,22,6],[23,1,23,10],[15,0,21,0],[15,1,18,3],[16,4,18,4],[19,1,20,3],[19,40,20,40],[6,0,14,0],[6,1,11,3],[9,4,10,4],[12,1,13,3],[24,39,24,40],[25,0,25,6],[25,7,25,8],[25,9,25,10],[25,11,25,12],[25,13,25,14],[25,15,25,16],[25,17,25,18],[25,27,25,28],[25,29,25,30],[26,15,26,16],[25,19,25,20],[25,21,25,22],[25,23,25,24],[25,25,25,26],[26,17,26,18],[26,19,26,20],[26,21,26,22],[26,23,26,24],[26,25,26,26],[26,0,26,6],[26,7,26,8],[26,9,26,10],[26,11,26,12],[26,13,26,14]]}
[null,null,null,null,null,null,null,null,null,null,null,null,null,null,null,null,null,null,null,null,null,null,null,null,null,null,null,null,null,null,null,null,null,null,null,null,null,null,null,null,null,null,null,null,null,null,null,null,"A"]
["単位修得状況確認表（共通教育科目：一般学生）",null,null,null,null,null,null,null,null,null,null,null,null,null,null,null,null,null,null,null,null,null,null,null,null,null,null,null,null,null,null,null,null,null,null,null,null,null,null,null,null,null,null,null,null,null,null,null,"B"]
["　",null,null,null,null,null,null,"取得単位数およびGP",null,null,null,null,null,null,null,null,null,null,null,null,null,null,null,null,null,null,null,null,null,null,null,null,null,null,null,null,null,null,null,"取得単位数","要修得\n単位数","累積GP",null,null,"当該期修得単位の入力要領（共通教育科目）",null,null,null,"C"]
[null,null,null,null,null,null,null,"　年次",null,null,null,"　年次",null,null,null,"　年次",null,null,null,"　年次",null,null,null,"　年次",null,null,null,"　年次",null,null,null,"　年次",null,null,null,"　年次",null,null,null,null,null,null,null,null,"１．黄色枠に各科目(英語の場合は修得した合計",null,null,null,"D"]
[null,null,null,null,null,null,null,"１期",null,"２期",null,"３期",null,"４期",null,"５期",null,"６期",null,"７期",null,"８期",null,"９期",null,"10期",null,"11期",null,"12期",null,"13期",null,"14期",null,"15期",null,"16期",null,null,null,null,null,null,"　　単位数)の修得単位数を記入する。",null,null,null,"F"]
[null,null,null,null,null,null,null,"単位","合計GP","単位","合計GP","単位","合計GP","単位","合計GP","単位","合計GP","単位","合計GP","単位","合計GP","単位","合計GP","単位","合計GP","単位","合計GP","単位","合計GP","単位","合計GP","単位","合計GP","単位","合計GP","単位","合計GP","単位","合計GP",null,null,null,null,null,"２．オレンジ枠に修得した必修科目・選択必修",null,null,null,"P"]
["必修科目","初年次教育科目",null,null,"初年次セミナーⅠ",null,null,null,null,null,null,null,null,null,null,null,null,null,null,null,null,null,null,null,null,null,null,null,null,null,null,null,null,null,null,null,null,null,null,{"$f":"SUM(H7,J7,L7,N7,P7,R7,T7,V7,X7,Z7,AB7,AD7,AF7,AH7,AJ7,AL7)","v":0},2,null,null,null,"　　科目それぞれの合計単位数を記入する。"]
[null,null,null,null,"初年次セミナーⅡ",null,null,null,null,null,null,null,null,null,null,null,null,null,null,null,null,null,null,null,null,null,null,null,null,null,null,null,null,null,null,null,null,null,null,{"$f":"SUM(H8,J8,L8,N8,P8,R8,T8,V8,X8,Z8,AB8,AD8,AF8,AH8,AJ8,AL8)","v":0},2,null,null,null,"３．灰色枠に受講科目の合計GP（単位数×GP）"]
[null,null,null,null,"大学と地域",null,null,null,null,null,null,null,null,null,null,null,null,null,null,null,null,null,null,null,null,null,null,null,null,null,null,null,null,null,null,null,null,null,null,0,2,null,null,null,"　　を計算し、その値を入力する。"]
[null,null,null,null,"体育・健康","理論",null,null,null,null,null,null,null,null,null,null,null,null,null,null,null,null,null,null,null,null,null,null,null,null,null,null,null,null,null,null,null,null,null,0,1,null,null,null,"　（評価とGPの関係：A=4,B=3,C=2,D=1,F=0,Pは"]
[null,null,null,null,null,"実習",null,null,null,null,null,null,null,null,null,null,null,null,null,null,null,null,null,null,null,null,null,null,null,null,null,null,null,null,null,null,null,null,null,0,1,null,null,null,"　　GPの該当外なので合計GP欄は空欄とする。）"]
[null,null,null,null,"情報活用",null,null,null,null,null,null,null,null,null,null,null,null,null,null,null,null,null,null,null,null,null,null,null,null,null,null,null,null,null,null,null,null,null,null,0,2,null,null,null,"４．取得単位数を要修得単位数と比較して、"]
[null,"ｸﾞﾛｰﾊﾞﾙ教育科目",null,null,"英語",null,null,null,null,null,null,null,null,null,null,null,null,null,null,null,null,null,null,null,null,null,null,null,null,null,null,null,null,null,null,null,null,null,null,0,6,null,null,null,"　　単位取得状況を把握する。"]
[null,null,null,null,"異文化理解",null,null,null,null,null,null,null,null,null,null,null,null,null,null,null,null,null,null,null,null,null,null,null,null,null,null,null,null,null,null,null,null,null,null,0,2]
[null,"必修科目　計",null,null,null,null,null,null,{"$f":"SUM(I7:I14)","v":0},null,{"$f":"SUM(K7:K14)","v":0},null,{"$f":"SUM(M7:M14)","v":0},null,{"$f":"SUM(O7:O14)","v":0},null,{"$f":"SUM(Q7:Q14)","v":0},null,{"$f":"SUM(S7:S14)","v":0},null,{"$f":"SUM(U7:U14)","v":0},null,{"$f":"SUM(W7:W14)","v":0},null,{"$f":"SUM(Y7:Y14)","v":0},null,{"$f":"SUM(AA7:AA14)","v":0},null,{"$f":"SUM(AC7:AC14)","v":0},null,{"$f":"SUM(AE7:AE14)","v":0},null,{"$f":"SUM(AG7:AG14)","v":0},null,{"$f":"SUM(AI7:AI14)","v":0},null,{"$f":"SUM(AK7:AK14)","v":0},null,{"$f":"SUM(AM7:AM14)","v":0},0,18,{"$f":"SUM(I15,K15,M15,O15,Q15,S15,U15,W15,Y15,AA15,AC15,AE15,AG15,AI15,AK15,AM15)","v":0},null,null,"※期をまたがって開講される科目は、成績の出"]
["選択必修科目","教養教育科目",null,null,"人文・社会科学分野","選択科目",null,null,null,null,null,null,null,null,null,null,null,null,null,null,null,null,null,null,null,null,null,null,null,null,null,null,null,null,null,null,null,null,null,0,4,null,null,null,"　された期に記入する。例えば通年の場合、後"]
[null,null,null,null,"自然科学分野","実験科目",null,null,null,null,null,null,null,null,null,null,null,null,null,null,null,null,null,null,null,null,null,null,null,null,null,null,null,null,null,null,null,null,null,0,1,null,null,null,"　期に記入する。"]
[null,null,null,null,null,"選択科目",null,null,null,null,null,null,null,null,null,null,null,null,null,null,null,null,null,null,null,null,null,null,null,null,null,null,null,null,null,null,null,null,null,0,2,null,null,null,"※本表最下部の表の入力方法について"]
[null,null,null,null,null,"基礎教育入門科目",null,null,null,null,null,null,null,null,null,null,null,null,null,null,null,null,null,null,null,null,null,null,null,null,null,null,null,null,null,null,null,null,null,0,2,null,null,null,"　・P評価の単位数は、当該期①の欄に、"]
[null,"教養活用科目",null,null,"統合Ⅰ（課題発見）",null,null,null,null,null,null,null,null,null,null,null,null,null,null,null,null,null,null,null,null,null,null,null,null,null,null,null,null,null,null,null,null,null,null,0,4,null,null,null,"　・F評価の単位数は、当該期②の欄に、"]
[null,null,null,null,"統合Ⅱ（課題解決）",null,null,null,null,null,null,null,null,null,null,null,null,null,null,null,null,null,null,null,null,null,null,null,null,null,null,null,null,null,null,null,null,null,null,0,null,null,null,null,"　・評価F科目の再履修での修得単位数は当該"]
[null,"選択必修科目　計",null,null,null,null,null,null,{"$f":"SUM(I16:I21)","v":0},null,{"$f":"SUM(K16:K21)","v":0},null,{"$f":"SUM(M16:M21)","v":0},null,{"$f":"SUM(O16:O21)","v":0},null,{"$f":"SUM(Q16:Q21)","v":0},null,{"$f":"SUM(S16:S21)","v":0},null,{"$f":"SUM(U16:U21)","v":0},null,{"$f":"SUM(W16:W21)","v":0},null,{"$f":"SUM(Y16:Y21)","v":0},null,{"$f":"SUM(AA16:AA21)","v":0},null,{"$f":"SUM(AC16:AC21)","v":0},null,{"$f":"SUM(AE16:AE21)","v":0},null,{"$f":"SUM(AG16:AG21)","v":0},null,{"$f":"SUM(AI16:AI21)","v":0},null,{"$f":"SUM(AK16:AK21)","v":0},null,{"$f":"SUM(AM16:AM21)","v":0},0,13,{"$f":"SUM(I22,K22,M22,O22,Q22,S22,U22,W22,Y22,AA22,AC22,AE22,AG22,AI22,AK22,AM22)","v":0},null,null,"　　期③の欄に入力する。なお、②には再履修"]
["全科目合計",null,null,null,null,null,null,{"$f":"H15+H22","v":0},{"$f":"I15+I22","v":0},{"$f":"J15+J22","v":0},0,0,0,0,0,0,0,0,0,0,0,0,0,0,{"$f":"Y15+Y22","v":0},0,{"$f":"AA15+AA22","v":0},0,{"$f":"AC15+AC22","v":0},0,{"$f":"AE15+AE22","v":0},0,{"$f":"AG15+AG22","v":0},0,{"$f":"AI15+AI22","v":0},0,{"$f":"AK15+AK22","v":0},0,{"$f":"AM15+AM22","v":0},0,31,{"$f":"SUM(I23,K23,M23,O23,Q23,S23,U23,W23,Y23,AA23,AC23,AE23,AG23,AI23,AK23,AM23)","v":0},null,null,"　　の科目は含まない。"]
["※","「期を増やす」欄により学年を４年間増やすことが可。",null,null,null,null,null,null,null,null,null,null,null,null,null,null,null,null,null,null,null,null,null,null,null,null,null,null,null,null,null,null,null,null,null,null,null,null,null,null,null,null,null,null,"※評価Fの科目を再履修して単位を修得した場合"]
[null,null,null,null,null,null,null,null,null,null,null,null,null,null,null,null,null,null,null,null,null,null,null,null,null,null,null,null,null,null,null,null,null,null,null,null,null,null,null,null,null,null,null,null,"　の入力方法について"]
["①【共通教育科目】評価Pの単位数",null,null,null,null,null,null,null,null,null,null,null,null,null,null,null,null,null,null,null,null,null,null,null,null,null,null,null,null,null,null,null,null,null,null,null,null,null,null,{"$f":"SUM(H26:AM26)","v":0},null,null,null,null,"　上記1～3の手順で入力する。"]
["②【共通教育科目】不合格（評価F）の単位数",null,null,null,null,null,null,null,null,null,null,null,null,null,null,null,null,null,null,null,null,null,null,null,null,null,null,null,null,null,null,null,null,null,null,null,null,null,null,{"$f":"SUM(H27:AM27)","v":0},null,null,null,null,"※既修得単位（D以上）の科目を再履修して単位を"]
["③【共通教育科目】評価F科目の再履修での修得単位数",null,null,null,null,null,null,null,null,null,null,null,null,null,null,null,null,null,null,null,null,null,null,null,null,null,null,null,null,null,null,null,null,null,null,null,null,null,null,{"$f":"SUM(H28:AM28)","v":0},null,null,null,null,"　修得した場合の入力方法について"]
[null,null,null,null,null,null,null,null,null,null,null,null,null,null,null,null,null,null,null,null,null,null,null,null,null,null,null,null,null,null,null,null,null,null,null,null,null,null,null,null,null,null,null,null,"　今期の分を上記1～3の手順で入力した後、"]
[null,null,null,null,null,null,null,null,null,null,null,null,null,null,null,null,null,null,null,null,null,null,null,null,null,null,null,null,null,null,null,null,null,null,null,null,null,null,null,null,null,null,null,null,"  過去の評価（黄色枠）と合計GP（灰色枠）"]
[null,null,null,null,null,null,null,null,null,null,null,null,null,null,null,null,null,null,null,null,null,null,null,null,null,null,null,null,null,null,null,null,null,null,null,null,null,null,null,null,null,null,null,null,"　を削除し、過去のオレンジ枠の合計修得単位数"]
[null,null,null,null,null,null,null,null,null,null,null,null,null,null,null,null,null,null,null,null,null,null,null,null,null,null,null,null,null,null,null,null,null,null,null,null,null,null,null,null,null,null,null,null,"　から今期再履修で修得した単位数を引いた値を"]
[null,null,null,null,null,null,null,null,null,null,null,null,null,null,null,null,null,null,null,null,null,null,null,null,null,null,null,null,null,null,null,null,null,null,null,null,null,null,null,null,null,null,null,null,"　過去のオレンジ枠の合計修得単位数に再入力する。"]
[]
[null,null,null,null,null,null,null,null,null,null,null,null,null,null,null,null,null,null,null,null,null,null,null,null,null,null,null,null,null,null,null,null,null,null,null,null,null,null,null,null,null,null,null,null,"（補足説明）"]
[null,null,null,null,null,null,null,null,null,null,null,null,null,null,null,null,null,null,null,null,null,null,null,null,null,null,null,null,null,null,null,null,null,null,null,null,null,null,null,null,null,null,null,null,"※留年した場合は「期を増やす」欄で列を増"]
[null,null,null,null,null,null,null,null,null,null,null,null,null,null,null,null,null,null,null,null,null,null,null,null,null,null,null,null,null,null,null,null,null,null,null,null,null,null,null,null,null,null,null,null,"　やす。"]

{"sheet":"単位修得状況確認表（専門教育科目）","index":4,"n_rows":89,"n_cols":50,"rows_kept":89,"cut":false,"hidden":false,"merged":[[1,0,1,40],[2,38,5,38],[3,6,3,9],[2,40,5,40],[3,18,3,21],[88,14,88,15],[88,16,88,17],[88,18,88,19],[88,20,88,21],[88,22,88,23],[88,24,88,25],[88,26,88,27],[88,28,88,29],[88,30,88,31],[88,32,88,33],[88,34,88,35],[88,36,88,37],[84,38,84,39],[6,0,11,0],[6,1,11,1],[12,0,12,5],[14,0,40,0],[88,0,88,5],[88,6,88,7],[88,8,88,9],[88,10,88,11],[88,12,88,13],[86,20,86,21],[82,0,82,5],[83,0,83,5],[86,6,86,7],[86,8,86,9],[86,10,86,11],[86,12,86,13],[86,14,86,15],[86,16,86,17],[87,18,87,19],[86,0,86,5],[86,18,86,19],[84,1,84,10],[14,1,40,1],[41,0,41,5],[4,26,4,27],[4,28,4,29],[38,49,39,49],[43,49,44,49],[70,45,79,45],[6,45,40,45],[43,45,48,45],[51,45,58,45],[61,45,67,45],[72,43,74,43],[43,0,48,0],[43,1,48,1],[61,0,67,0],[61,1,67,1],[70,1,79,1],[70,0,79,0],[68,0,68,5],[2,0,2,1],[4,14,4,15],[4,16,4,17],[4,18,4,19],[2,39,5,39],[4,20,4,21],[3,22,3,25],[4,34,4,35],[2,6,2,37],[4,36,4,37],[4,30,4,31],[4,32,4,33],[3,30,3,33],[3,34,3,37],[4,22,4,23],[3,26,3,29],[4,6,4,7],[5,0,5,1],[3,10,3,13],[3,14,3,17],[4,8,4,9],[4,10,4,11],[4,12,4,13],[4,24,4,25],[80,0,80,5],[49,0,49,5],[51,0,58,0],[59,0,59,5],[51,1,58,1],[87,20,87,21],[87,0,87,5],[87,6,87,7],[87,8,87,9],[87,10,87,11],[87,12,87,13],[87,14,87,15],[87,16,87,17],[86,34,86,35],[86,36,86,37],[87,22,87,23],[87,24,87,25],[87,26,87,27],[87,28,87,29],[87,30,87,31],[87,32,87,33],[87,34,87,35],[87,36,87,37],[86,22,86,23],[86,24,86,25],[86,26,86,27],[86,28,86,29],[86,30,86,31],[86,32,86,33]]}
[null,null,null,null,null,null,null,null,null,null,null,null,null,null,null,null,null,null,null,null,null,null,null,null,null,null,null,null,null,null,null,null,null,null,null,null,null,null,null,null,null,null,null,null,null,null,"A"]
["単位修得状況確認表（専門教育科目）",null,null,null,null,null,null,null,null,null,null,null,null,null,null,null,null,null,null,null,null,null,null,null,null,null,null,null,null,null,null,null,null,null,null,null,null,null,null,null,null,null,null,"受講科目の単位入力要領（専門教育科目）",null,null,"B"]
["区",null,"工 ","専","授","単","履修科目の評価およびGP",null,null,null,null,null,null,null,null,null,null,null,null,null,null,null,null,null,null,null,null,null,null,null,null,null,null,null,null,null,null,null,"取得単位数","要修得\n単位数","累積GP",null,null,"STEP１",null,null,"C"]
[null," ","学 "," ","業"," ","　年次",null,null,null,"　年次",null,null,null,"　年次",null,null,null,"　年次",null,null,null,"　年次",null,null,null,"　年次",null,null,null,"　年次",null,null,null,"　年次",null,null,null,null,null,null,null,null,"当該期に受講した科目の単位を区分ごとに以下の手順で",null,null,"D"]
[null,null,"基",null,"科",null,"１期",null,"２期",null,"３期",null,"４期",null,"５期",null,"６期",null,"７期",null,"８期",null,"９期",null,"10期",null,"11期",null,"12期",null,"13期",null,"14期",null,"15期",null,"16期",null,null,null,null,null,null,"入力し、要修得単位数と比較して単位取得状況を把握",null,null,"F"]
["分",null,"礎","門","目","位","評価","合計GP","評価","合計GP","評価","合計GP","評価","合計GP","評価","合計GP","評価","合計GP","評価","合計GP","評価","合計GP","評価","合計GP","評価","合計GP","評価","合計GP","評価","合計GP","評価","合計GP","評価","合計GP","評価","合計GP","評価","合計GP",null,null,null,null,null,"する。",null,null,"P"]
["基礎教育科目","必修科目",null,null,"微分積分学AⅠ",2,null,null,null,null,null,null,null,null,null,null,null,null,null,null,null,null,null,null,null,null,null,null,null,null,null,null,null,null,null,null,null,null,null,null,null,null,null,null,null,"必　　修　　科　　目",250152511101,{"$f":"E7","v":"微分積分学AⅠ"}]
[null,null,null,null,"線形代数学Ⅰ",2,null,null,null,null,null,null,null,null,null,null,null,null,null,null,null,null,null,null,null,null,null,null,null,null,null,null,null,null,null,null,null,null,null,null,null,null,null,"１．黄色枠に受講科目の評価（A,B,C,D,F,P）を入力する。",null,null,259742513102,"線形代数学Ⅰ"]
[null,null,null,null,"物理学基礎AⅠ",2,null,null,null,null,null,null,null,null,null,null,null,null,null,null,null,null,null,null,null,null,null,null,null,null,null,null,null,null,null,null,null,null,null,null,null,null,null,"２．オレンジ枠に合計修得単位数を入力する。",null,null,259742513101,"物理学基礎AⅠ"]
[null,null,null,null,"微分積分学AⅡ",2,null,null,null,null,null,null,null,null,null,null,null,null,null,null,null,null,null,null,null,null,null,null,null,null,null,null,null,null,null,null,null,null,null,null,null,null,null,"３．灰色枠に受講科目の合計GP（単位数×GP）を計算し、",null,null,250122500001,"微分積分学AⅡ"]
[null,null,null,null,"線形代数学Ⅱ",2,null,null,null,null,null,null,null,null,null,null,null,null,null,null,null,null,null,null,null,null,null,null,null,null,null,null,null,null,null,null,null,null,null,null,null,null,null,"    その値を入力する。",null,null,259752511111,"線形代数学Ⅱ"]
[null,null,null,null,"物理学基礎AⅡ",2,null,null,null,null,null,null,null,null,null,null,null,null,null,null,null,null,null,null,null,null,null,null,null,null,null,null,null,null,null,null,null,null,null,null,null,null,null,"　（評価とGPの関係：A=4,B=3,C=2,D=1,F=0,PはGPの該当",null,null,259752511104,"物理学基礎AⅡ"]
["合計",null,null,null,null,null,null,{"$f":"SUM(H7:H12)","v":0},null,{"$f":"SUM(J7:J12)","v":0},null,{"$f":"SUM(L7:L12)","v":0},null,{"$f":"SUM(N7:N12)","v":0},null,{"$f":"SUM(P7:P12)","v":0},null,{"$f":"SUM(R7:R12)","v":0},null,{"$f":"SUM(T7:T12)","v":0},null,{"$f":"SUM(V7:V12)","v":0},null,{"$f":"SUM(X7:X12)","v":0},null,{"$f":"SUM(Z7:Z12)","v":0},null,{"$f":"SUM(AB7:AB12)","v":0},null,{"$f":"SUM(AD7:AD12)","v":0},null,{"$f":"SUM(AF7:AF12)","v":0},null,{"$f":"SUM(AH7:AH12)","v":0},null,{"$f":"SUM(AJ7:AJ12)","v":0},null,{"$f":"SUM(AL7:AL12)","v":0},{"$f":"SUM(G13,I13,K13,M13,O13,Q13,S13,U13,W13,Y13,AA13,AC13,AE13,AG13,AI13,AK13)","v":0},12,{"$f":"SUM(H13,J13,L13,N13,P13,R13,T13,V13,X13,Z13,AB13,AD13,AF13,AH13,AJ13,AL13)","v":0},null,null,"　　外なので合計GP欄は空欄とする。）",null,null,259752511101,0]
[null,null,null,null,null,null,null,null,null,null,null,null,null,null,null,null,null,null,null,null,null,null,null,null,null,null,null,null,null,null,null,null,null,null,null,null,null,null,null,null,null,null,null,"４．修得単位数を要修得単位数と比較して単位取得状況"]
["専　　門　　科　　目","必　　修　　科　　目"," ","○","フレッシュマンセミナー",2,null,null,null,null,null,null,null,null,null,null,null,null,null,null,null,null,null,null,null,null,null,null,null,null,null,null,null,null,null,null,null,null,null,null,null,null,null,"    を把握する。",null,null,259752511112,"フレッシュマンセミナー"]
[null,null,"○"," ","海　洋　学　総　論",2,null,null,null,null,null,null,null,null,null,null,null,null,null,null,null,null,null,null,null,null,null,null,null,null,null,null,null,null,null,null,null,null,null,null,null,null,null,null,null,null,250122500002,"海　洋　学　総　論"]
[null,null,"○"," ","材　料　力　学　基　礎",2,null,null,null,null,null,null,null,null,null,null,null,null,null,null,null,null,null,null,null,null,null,null,null,null,null,null,null,null,null,null,null,null,null,null,null,null,null,"※期をまたがって開講される科目は、成績の出された期に",null,null,259752515117,"材　料　力　学　基　礎"]
[null,null,"○"," ","工業数学および演習Ⅰ",3,null,null,null,null,null,null,null,null,null,null,null,null,null,null,null,null,null,null,null,null,null,null,null,null,null,null,null,null,null,null,null,null,null,null,null,null,null,"  記入する。例えば通年の場合、後期に記入する。",null,null,259752511102,"工業数学および演習Ⅰ"]
[null,null," ","○","構　　造　　力　　学",2,null,null,null,null,null,null,null,null,null,null,null,null,null,null,null,null,null,null,null,null,null,null,null,null,null,null,null,null,null,null,null,null,null,null,null,null,null,"※本表最下部の表の入力方法について",null,null,259752511103,"構　　造　　力　　学"]
[null,null," ","○","水　　理　　学　　Ⅰ",2,null,null,null,null,null,null,null,null,null,null,null,null,null,null,null,null,null,null,null,null,null,null,null,null,null,null,null,null,null,null,null,null,null,null,null,null,null,"　・P評価の単位数は当該期①の欄に、",null,null,259752511401,"水　　理　　学　　Ⅰ"]
[null,null," ","○","建　設　材　料　学",2,null,null,null,null,null,null,null,null,null,null,null,null,null,null,null,null,null,null,null,null,null,null,null,null,null,null,null,null,null,null,null,null,null,null,null,null,null,"　・F評価の単位数は当該期②の欄に、",null,null,250152511102,"建　設　材　料　学"]
[null,null,"○",null,"工業数学および演習Ⅱ",3,null,null,null,null,null,null,null,null,null,null,null,null,null,null,null,null,null,null,null,null,null,null,null,null,null,null,null,null,null,null,null,null,null,null,null,null,null,"　・評価F科目の再履修での修得単位数は当該期③の欄に",null,null,250152511103,"工業数学および演習Ⅱ"]
[null,null," ","○","土　質　力　学　Ⅰ",2,null,null,null,null,null,null,null,null,null,null,null,null,null,null,null,null,null,null,null,null,null,null,null,null,null,null,null,null,null,null,null,null,null,null,null,null,null,"　　入力する。なお、②には再履修の科目は含まない。",null,null,259752511107,"土　質　力　学　Ⅰ"]
[null,null," ","○","水　　理　　学　　Ⅱ",2,null,null,null,null,null,null,null,null,null,null,null,null,null,null,null,null,null,null,null,null,null,null,null,null,null,null,null,null,null,null,null,null,null,null,null,null,null,"※評価Fの科目を再履修して単位を修得した場合の入力方"]
[null,null," ","○","測量学",2,null,null,null,null,null,null,null,null,null,null,null,null,null,null,null,null,null,null,null,null,null,null,null,null,null,null,null,null,null,null,null,null,null,null,null,null,null,"  法について"]
[null,null," ","○","測量実習",1,null,null,null,null,null,null,null,null,null,null,null,null,null,null,null,null,null,null,null,null,null,null,null,null,null,null,null,null,null,null,null,null,null,null,null,null,null,"  上記１～３の手順で入力する。"]
[null,null," ","○","土　質　力　学　Ⅱ",2,null,null,null,null,null,null,null,null,null,null,null,null,null,null,null,null,null,null,null,null,null,null,null,null,null,null,null,null,null,null,null,null,null,null,null,null,null,"※既修得単位（D以上）の科目を再履修して単位を"]
[null,null," ","○","沿岸環境学",2,null,null,null,null,null,null,null,null,null,null,null,null,null,null,null,null,null,null,null,null,null,null,null,null,null,null,null,null,null,null,null,null,null,null,null,null,null,"　修得した場合の入力方法について"]
[null,null," ","○","海　岸　環　境　工　学",2,null,null,null,null,null,null,null,null,null,null,null,null,null,null,null,null,null,null,null,null,null,null,null,null,null,null,null,null,null,null,null,null,null,null,null,null,null,"　今期の分を上記1～3の手順で入力した後、"]
[null,null," ","○","構　造　解　析　学",2,null,null,null,null,null,null,null,null,null,null,null,null,null,null,null,null,null,null,null,null,null,null,null,null,null,null,null,null,null,null,null,null,null,null,null,null,null,"  過去の評価（黄色枠）と合計GP（灰色枠）"]
[null,null," ","○","コンクリート構造設計学",2,null,null,null,null,null,null,null,null,null,null,null,null,null,null,null,null,null,null,null,null,null,null,null,null,null,null,null,null,null,null,null,null,null,null,null,null,null,"　を削除し、過去のオレンジ枠の合計修得単位数"]
[null,null,null,"○","海洋土木工学総合演習Ⅰ",1,null,null,null,null,null,null,null,null,null,null,null,null,null,null,null,null,null,null,null,null,null,null,null,null,null,null,null,null,null,null,null,null,null,null,null,null,null,"　から今期再履修で修得した単位数を引いた値を"]
[null,null," ","○","海洋物理環境学",2,null,null,null,null,null,null,null,null,null,null,null,null,null,null,null,null,null,null,null,null,null,null,null,null,null,null,null,null,null,null,null,null,null,null,null,null,null,"　過去のオレンジ枠の合計修得単位数に再入力する。"]
[null,null," ","○","海　岸　防　災　工　学",2]
[null,null," ","○","海洋土木専門英語Ⅰ",2,null,null,null,null,null,null,null,null,null,null,null,null,null,null,null,null,null,null,null,null,null,null,null,null,null,null,null,null,null,null,null,null,null,null,null,null,null,"STEP２"]
[null,null," ","○","土木技術者倫理",2,null,null,null,null,null,null,null,null,null,null,null,null,null,null,null,null,null,null,null,null,null,null,null,null,null,null,null,null,null,null,null,null,null,null,null,null,null,"累積GPAの値を学業成績証明書と一致するかチェックする。",null,null,259752511108,{"$f":"E36","v":"土木技術者倫理"}]
[null,null,null,"○","海洋土木工学総合演習Ⅱ",1,null,null,null,null,null,null,null,null,null,null,null,null,null,null,null,null,null,null,null,null,null,null,null,null,null,null,null,null,null,null,null,null,null,null,null,null,null,"区分ごとの単位修得状況の入力が終了した後に、シート",null,null,250072500005,"海洋土木工学総合演習Ⅱ"]
[null,null,null,"○","建設マネジメント",2,null,null,null,null,null,null,null,null,null,null,null,null,null,null,null,null,null,null,null,null,null,null,null,null,null,null,null,null,null,null,null,null,null,null,null,null,null,"右下赤枠の「累積GPA」の値が、学業成績証明書に記載されて",null,null,259752515102,"建設マネジメント"]
[null,null,null,"○","海洋土木専門英語Ⅱ",2,null,null,null,null,null,null,null,null,null,null,null,null,null,null,null,null,null,null,null,null,null,null,null,null,null,null,null,null,null,null,null,null,null,null,null,null,null,"いる累積GPAの値と一致しているかチェックし、一致",null,null,250225000110,"海洋土木専門英語Ⅱ","2件以上ヒット","土木技術英語 250225000110\n土木技術英語 259852515101"]
[null,null,null,"○","海洋土木デザイン工学",2,null,null,null,null,null,null,null,null,null,null,null,null,null,null,null,null,null,null,null,null,null,null,null,null,null,null,null,null,null,null,null,null,null,null,null,null,null,"していない場合はSTEP１に戻り、入力値に間違いが",null,null,250225000001,"海洋土木デザイン工学"]
[null,null,null,"○","卒　　業　　論　　文",6,null,null,null,null,null,null,null,null,null,null,null,null,null,null,null,null,null,null,null,null,null,null,null,null,null,null,null,null,null,null,null,null,null,null,null,null,null,"ないか見直し、正しく入力する。",null,null,250072500010,"卒　　業　　論　　文"]
["合計",null,null,null,null,null,null,{"$f":"SUM(H15:H41)","v":0},null,{"$f":"SUM(J15:J41)","v":0},null,{"$f":"SUM(L15:L41)","v":0},null,{"$f":"SUM(N15:N41)","v":0},null,{"$f":"SUM(P15:P41)","v":0},null,{"$f":"SUM(R15:R41)","v":0},null,{"$f":"SUM(T15:T41)","v":0},null,{"$f":"SUM(V15:V41)","v":0},null,{"$f":"SUM(X15:X41)","v":0},null,{"$f":"SUM(Z15:Z41)","v":0},null,{"$f":"SUM(AB15:AB41)","v":0},null,{"$f":"SUM(AD15:AD41)","v":0},null,{"$f":"SUM(AF15:AF41)","v":0},null,{"$f":"SUM(AH15:AH41)","v":0},null,{"$f":"SUM(AJ15:AJ41)","v":0},null,{"$f":"SUM(AL15:AL41)","v":0},{"$f":"SUM(G42,I42,K42,M42,O42,Q42,S42,U42,W42,Y42,AA42,AC42,AE42,AG42,AI42,AK42)","v":0},57,{"$f":"SUM(H42,J42,L42,N42,P42,R42,T42,V42,X42,Z42,AB42,AD42,AF42,AH42,AJ42,AL42)","v":0}]
[null,null,null,null,null,null,null,null,null,null,null,null,null,null,null,null,null,null,null,null,null,null,null,null,null,null,null,null,null,null,null,null,null,null,null,null,null,null,null,null,null,null,null,"（補足説明）"]
["専門科目","選択科目A群"," ","○","構　造　力　学　演　習",1,null,null,null,null,null,null,null,null,null,null,null,null,null,null,null,null,null,null,null,null,null,null,null,null,null,null,null,null,null,null,null,null,null,null,null,null,null,"※留年した場合は「期を増やす」欄で列を増やす。",null,"選択科目A群",259752512202,{"$f":"E44","v":"構　造　力　学　演　習"},"2件以上ヒット","構造力学演習（海）259752512202\n構造力学演習  海 259352511201"]
[null,null," ","○","土　質　力　学　演　習",1,null,null,null,null,null,null,null,null,null,null,null,null,null,null,null,null,null,null,null,null,null,null,null,null,null,null,null,null,null,null,null,null,null,null,null,null,null,"※評価Pの科目については、GPおよびGPAの計算に含ま",null,null,259752512201,"土　質　力　学　演　習"]
[null,null," ","○","水　理　学　演　習",1,null,null,null,null,null,null,null,null,null,null,null,null,null,null,null,null,null,null,null,null,null,null,null,null,null,null,null,null,null,null,null,null,null,null,null,null,null,"　ない。しかしながら、進級・卒業要件の累積単位数",null,null,259752512205,"水　理　学　演　習"]
[null,null," ","○","構造解析学演習",1,null,null,null,null,null,null,null,null,null,null,null,null,null,null,null,null,null,null,null,null,null,null,null,null,null,null,null,null,null,null,null,null,null,null,null,null,null,"　には含まれることがあるので、標準履修課程表で確認",null,null,259752512203,"構造解析学演習"]
[null,null," ","○","コンクリート構造設計学演習",1,null,null,null,null,null,null,null,null,null,null,null,null,null,null,null,null,null,null,null,null,null,null,null,null,null,null,null,null,null,null,null,null,null,null,null,null,null,"　すること。（インターンシップ等）",null,null,259752512206,"コンクリート構造設計学演習"]
[null,null,null,"○","海洋物理環境学演習",1,null,null,null,null,null,null,null,null,null,null,null,null,null,null,null,null,null,null,null,null,null,null,null,null,null,null,null,null,null,null,null,null,null,null,null,null,null,"※随意科目については、GPおよびGPAの計算に含まれない。",null,null,250152512202,"海洋物理環境学演習"]
["合計",null,null,null,null,null,null,{"$f":"SUM(H44:H49)","v":0},null,{"$f":"SUM(J44:J49)","v":0},null,{"$f":"SUM(L44:L49)","v":0},null,{"$f":"SUM(N44:N49)","v":0},null,{"$f":"SUM(P44:P49)","v":0},null,{"$f":"SUM(R44:R49)","v":0},null,{"$f":"SUM(T44:T49)","v":0},null,{"$f":"SUM(V44:V49)","v":0},null,{"$f":"SUM(X44:X49)","v":0},null,{"$f":"SUM(Z44:Z49)","v":0},null,{"$f":"SUM(AB44:AB49)","v":0},null,{"$f":"SUM(AD44:AD49)","v":0},null,{"$f":"SUM(AF44:AF49)","v":0},null,{"$f":"SUM(AH44:AH49)","v":0},null,{"$f":"SUM(AJ44:AJ49)","v":0},null,{"$f":"SUM(AL44:AL49)","v":0},{"$f":"SUM(G50,I50,K50,M50,O50,Q50,S50,U50,W50,Y50,AA50,AC50,AE50,AG50,AI50,AK50)","v":0},5,{"$f":"SUM(H50,J50,L50,N50,P50,R50,T50,V50,X50,Z50,AB50,AD50,AF50,AH50,AJ50,AL50)","v":0},null,null,"　また、進級・卒業要件にも含まれない。"]
[]
["専門科目","選択科目B群","○"," ","地球科学基礎",2,null,null,null,null,null,null,null,null,null,null,null,null,null,null,null,null,null,null,null,null,null,null,null,null,null,null,null,null,null,null,null,null,null,null,null,null,null,null,null,"選択科目B群",250299110001,{"$f":"E52","v":"地球科学基礎"}]
[null,null," ","○","海洋コンクリート工学",2,null,null,null,null,null,null,null,null,null,null,null,null,null,null,null,null,null,null,null,null,null,null,null,null,null,null,null,null,null,null,null,null,null,null,null,null,null,null,null,null,250152515101,"海洋コンクリート工学"]
[null,null," ","○","土木環境計画学",2,null,null,null,null,null,null,null,null,null,null,null,null,null,null,null,null,null,null,null,null,null,null,null,null,null,null,null,null,null,null,null,null,null,null,null,null,null,null,null,null,250152515103,"土木環境計画学"]
[null,null," ","○","環境汚染制御",2,null,null,null,null,null,null,null,null,null,null,null,null,null,null,null,null,null,null,null,null,null,null,null,null,null,null,null,null,null,null,null,null,null,null,null,null,null,null,null,null,250152511104,"環境汚染制御"]
[null,null,null,"○","流域保全工学",2,null,null,null,null,null,null,null,null,null,null,null,null,null,null,null,null,null,null,null,null,null,null,null,null,null,null,null,null,null,null,null,null,null,null,null,null,null,null,null,null,251325000022,"流域保全工学","ヒットせず"]
[null,null,null,"○","耐　震　工　学",2,null,null,null,null,null,null,null,null,null,null,null,null,null,null,null,null,null,null,null,null,null,null,null,null,null,null,null,null,null,null,null,null,null,null,null,null,null,null,null,null,250072500001,"耐　震　工　学"]
[null,null,null,"○","合成構造システム工学",2,null,null,null,null,null,null,null,null,null,null,null,null,null,null,null,null,null,null,null,null,null,null,null,null,null,null,null,null,null,null,null,null,null,null,null,null,null,null,null,null,259752515107,"合成構造システム工学"]
[null,null," ","○","海洋建設システム工学",2,null,null,null,null,null,null,null,null,null,null,null,null,null,null,null,null,null,null,null,null,null,null,null,null,null,null,null,null,null,null,null,null,null,null,null,null,null,null,null,null,259752515109,"海洋建設システム工学"]
["合計",null,null,null,null,null,null,{"$f":"SUM(H52:H59)","v":0},null,{"$f":"SUM(J52:J59)","v":0},null,{"$f":"SUM(L52:L59)","v":0},null,{"$f":"SUM(N52:N59)","v":0},null,{"$f":"SUM(P52:P59)","v":0},null,{"$f":"SUM(R52:R59)","v":0},null,{"$f":"SUM(T52:T59)","v":0},null,{"$f":"SUM(V52:V59)","v":0},null,{"$f":"SUM(X52:X59)","v":0},null,{"$f":"SUM(Z52:Z59)","v":0},null,{"$f":"SUM(AB52:AB59)","v":0},null,{"$f":"SUM(AD52:AD59)","v":0},null,{"$f":"SUM(AF52:AF59)","v":0},null,{"$f":"SUM(AH52:AH59)","v":0},null,{"$f":"SUM(AJ52:AJ59)","v":0},null,{"$f":"SUM(AL52:AL59)","v":0},{"$f":"SUM(G60,I60,K60,M60,O60,Q60,S60,U60,W60,Y60,AA60,AC60,AE60,AG60,AI60,AK60)","v":0},12,{"$f":"SUM(H60,J60,L60,N60,P60,R60,T60,V60,X60,Z60,AB60,AD60,AF60,AH60,AJ60,AL60)","v":0}]
[]
["専門科目","選択科目C群","○"," ","プログラミング演習",1,null,null,null,null,null,null,null,null,null,null,null,null,null,null,null,null,null,null,null,null,null,null,null,null,null,null,null,null,null,null,null,null,null,null,null,null,null,null,null,"選択科目C群",250122500005,{"$f":"E62","v":"プログラミング演習"}]
[null,null," ","○","海洋建設工学実験Ⅰ",1,null,null,null,null,null,null,null,null,null,null,null,null,null,null,null,null,null,null,null,null,null,null,null,null,null,null,null,null,null,null,null,null,null,null,null,null,null,null,null,null,259752514303,"海洋建設工学実験Ⅰ"]
[null,null," ","○","海洋建設工学実験Ⅲ",1,null,null,null,null,null,null,null,null,null,null,null,null,null,null,null,null,null,null,null,null,null,null,null,null,null,null,null,null,null,null,null,null,null,null,null,null,null,null,null,null,259752514301,"海洋建設工学実験Ⅲ"]
[null,null," ","○","海　岸　測　量　実　習",1,null,null,null,null,null,null,null,null,null,null,null,null,null,null,null,null,null,null,null,null,null,null,null,null,null,null,null,null,null,null,null,null,null,null,null,null,null,null,null,null,259752514402,"海　岸　測　量　実　習"]
[null,null," ","○","海洋建設工学実験Ⅱ",1,null,null,null,null,null,null,null,null,null,null,null,null,null,null,null,null,null,null,null,null,null,null,null,null,null,null,null,null,null,null,null,null,null,null,null,null,null,null,null,null,259752514302,"海洋建設工学実験Ⅱ"]
[null,null," ","○","海洋土木学外実習",1,null,null,null,null,null,null,null,null,null,null,null,null,null,null,null,null,null,null,null,null,null,null,null,null,null,null,null,null,null,null,null,null,null,null,null,null,null,null,null,null,259752514401,"海洋土木学外実習"]
[null,null," ","○","海　工　学　実　験",1,null,null,null,null,null,null,null,null,null,null,null,null,null,null,null,null,null,null,null,null,null,null,null,null,null,null,null,null,null,null,null,null,null,null,null,null,null,null,null,null,259752514304,"海　工　学　実　験"]
["合計",null,null,null,null,null,null,{"$f":"SUM(H62:H68)","v":0},null,{"$f":"SUM(J62:J68)","v":0},null,{"$f":"SUM(L62:L68)","v":0},null,{"$f":"SUM(N62:N68)","v":0},null,{"$f":"SUM(P62:P68)","v":0},null,{"$f":"SUM(R62:R68)","v":0},null,{"$f":"SUM(T62:T68)","v":0},null,{"$f":"SUM(V62:V68)","v":0},null,{"$f":"SUM(X62:X68)","v":0},null,{"$f":"SUM(Z62:Z68)","v":0},null,{"$f":"SUM(AB62:AB68)","v":0},null,{"$f":"SUM(AD62:AD68)","v":0},null,{"$f":"SUM(AF62:AF68)","v":0},null,{"$f":"SUM(AH62:AH68)","v":0},null,{"$f":"SUM(AJ62:AJ68)","v":0},null,{"$f":"SUM(AL62:AL68)","v":0},{"$f":"SUM(G69,I69,K69,M69,O69,Q69,S69,U69,W69,Y69,AA69,AC69,AE69,AG69,AI69,AK69)","v":0},5,{"$f":"SUM(H69,J69,L69,N69,P69,R69,T69,V69,X69,Z69,AB69,AD69,AF69,AH69,AJ69,AL69)","v":0}]
[]
["専門科目","選択科目D群","○"," ","情報システム",2,null,null,null,null,null,null,null,null,null,null,null,null,null,null,null,null,null,null,null,null,null,null,null,null,null,null,null,null,null,null,null,null,null,null,null,null,null,null,null,"選択科目D群",250099110002,{"$f":"E71","v":"情報システム"}]
[null,null,"○"," ","化学基礎",2,null,null,null,null,null,null,null,null,null,null,null,null,null,null,null,null,null,null,null,null,null,null,null,null,null,null,null,null,null,null,null,null,null,null,null,null,null,null,null,null,259742513104,"化学基礎"]
[null,null,"○"," ","数　　値　　解　　析",2,null,null,null,null,null,null,null,null,null,null,null,null,null,null,null,null,null,null,null,null,null,null,null,null,null,null,null,null,null,null,null,null,null,null,null,null,null,null,null,null,259752514102,"数　　値　　解　　析"]
[null,null,"○"," ","生　産　工　学　論",2,null,null,null,null,null,null,null,null,null,null,null,null,null,null,null,null,null,null,null,null,null,null,null,null,null,null,null,null,null,null,null,null,null,null,null,null,null,null,null,null,250299200001,"生　産　工　学　論"]
[null,null,"○"," ","エレクトロニクス論",2,null,null,null,null,null,null,null,null,null,null,null,null,null,null,null,null,null,null,null,null,null,null,null,null,null,null,null,null,null,null,null,null,null,null,null,null,null,null,null,null,250228100002,"エレクトロニクス論"]
[null,null,"○",null,"原子力・放射線と環境",2,null,null,null,null,null,null,null,null,null,null,null,null,null,null,null,null,null,null,null,null,null,null,null,null,null,null,null,null,null,null,null,null,null,null,null,null,null,null,null,null,250042099101,"原子力・放射線と環境"]
[null,null,"○"," ","材　料　科　学　論",2,null,null,null,null,null,null,null,null,null,null,null,null,null,null,null,null,null,null,null,null,null,null,null,null,null,null,null,null,null,null,null,null,null,null,null,null,null,null,null,null,250228100005,"材　料　科　学　論"]
[null,null,"○"," ","科　学　技　術　論",2,null,null,null,null,null,null,null,null,null,null,null,null,null,null,null,null,null,null,null,null,null,null,null,null,null,null,null,null,null,null,null,null,null,null,null,null,null,null,null,null,250228100006,"科　学　技　術　論"]
[null,null,"○"," ","環境工学論",2,null,null,null,null,null,null,null,null,null,null,null,null,null,null,null,null,null,null,null,null,null,null,null,null,null,null,null,null,null,null,null,null,null,null,null,null,null,null,null,null,250228100003,"環境工学論"]
[null,null,"○"," ","エネルギー工学論",2,null,null,null,null,null,null,null,null,null,null,null,null,null,null,null,null,null,null,null,null,null,null,null,null,null,null,null,null,null,null,null,null,null,null,null,null,null,null,null,null,250228100004,"エネルギー工学論"]
["合計",null,null,null,null,null,null,{"$f":"SUM(H71:H80)","v":0},null,{"$f":"SUM(J71:J80)","v":0},null,{"$f":"SUM(L71:L80)","v":0},null,{"$f":"SUM(N71:N80)","v":0},null,{"$f":"SUM(P71:P80)","v":0},null,{"$f":"SUM(R71:R80)","v":0},null,{"$f":"SUM(T71:T80)","v":0},null,{"$f":"SUM(V71:V80)","v":0},null,{"$f":"SUM(X71:X80)","v":0},null,{"$f":"SUM(Z71:Z80)","v":0},null,{"$f":"SUM(AB71:AB80)","v":0},null,{"$f":"SUM(AD71:AD80)","v":0},null,{"$f":"SUM(AF71:AF80)","v":0},null,{"$f":"SUM(AH71:AH80)","v":0},null,{"$f":"SUM(AJ71:AJ80)","v":0},null,{"$f":"SUM(AL71:AL80)","v":0},{"$f":"SUM(G81,I81,K81,M81,O81,Q81,S81,U81,W81,Y81,AA81,AC81,AE81,AG81,AI81,AK81)","v":0},2,{"$f":"SUM(H81,J81,L81,N81,P81,R81,T81,V81,X81,Z81,AB81,AD81,AF81,AH81,AJ81,AL81)","v":0}]
[]
["専門教育科目合計（単位数とGP）",null,null,null,null,null,{"$f":"SUM(G13,G42,G50,G60,G69,G81)","v":0},0,0,0,0,0,0,0,0,0,0,0,0,0,0,0,0,0,0,0,0,0,0,0,0,0,0,0,0,0,0,0,{"$f":"SUM(G83,I83,K83,M83,O83,Q83,S83,U83,W83,Y83,AA83,AC83,AE83,AG83,AI83,AK83)","v":0},93,{"$f":"SUM(H83,J83,L83,N83,P83,R83,T83,V83,X83,Z83,AB83,AD83,AF83,AH83,AJ83,AL83)","v":0}]
["(共通＋専門)教育科目合計（単位数とGP）",null,null,null,null,null,{"$f":"'単位修得状況確認表（共通教育科目，一般学生）'!H23+G83","v":0},{"$f":"'単位修得状況確認表（共通教育科目，一般学生）'!I23+H83","v":0},{"$f":"'単位修得状況確認表（共通教育科目，一般学生）'!J23+I83","v":0},{"$f":"'単位修得状況確認表（共通教育科目，一般学生）'!K23+J83","v":0},{"$f":"'単位修得状況確認表（共通教育科目，一般学生）'!L23+K83","v":0},{"$f":"'単位修得状況確認表（共通教育科目，一般学生）'!M23+L83","v":0},{"$f":"'単位修得状況確認表（共通教育科目，一般学生）'!N23+M83","v":0},{"$f":"'単位修得状況確認表（共通教育科目，一般学生）'!O23+N83","v":0},{"$f":"'単位修得状況確認表（共通教育科目，一般学生）'!P23+O83","v":0},{"$f":"'単位修得状況確認表（共通教育科目，一般学生）'!Q23+P83","v":0},{"$f":"'単位修得状況確認表（共通教育科目，一般学生）'!R23+Q83","v":0},{"$f":"'単位修得状況確認表（共通教育科目，一般学生）'!S23+R83","v":0},{"$f":"'単位修得状況確認表（共通教育科目，一般学生）'!T23+S83","v":0},{"$f":"'単位修得状況確認表（共通教育科目，一般学生）'!U23+T83","v":0},{"$f":"'単位修得状況確認表（共通教育科目，一般学生）'!V23+U83","v":0},{"$f":"'単位修得状況確認表（共通教育科目，一般学生）'!W23+V83","v":0},{"$f":"'単位修得状況確認表（共通教育科目，一般学生）'!X23+W83","v":0},{"$f":"'単位修得状況確認表（共通教育科目，一般学生）'!Y23+X83","v":0},{"$f":"'単位修得状況確認表（共通教育科目，一般学生）'!Z23+Y83","v":0},{"$f":"'単位修得状況確認表（共通教育科目，一般学生）'!AA23+Z83","v":0},{"$f":"'単位修得状況確認表（共通教育科目，一般学生）'!AB23+AA83","v":0},{"$f":"'単位修得状況確認表（共通教育科目，一般学生）'!AC23+AB83","v":0},{"$f":"'単位修得状況確認表（共通教育科目，一般学生）'!AD23+AC83","v":0},{"$f":"'単位修得状況確認表（共通教育科目，一般学生）'!AE23+AD83","v":0},{"$f":"'単位修得状況確認表（共通教育科目，一般学生）'!AF23+AE83","v":0},{"$f":"'単位修得状況確認表（共通教育科目，一般学生）'!AG23+AF83","v":0},{"$f":"'単位修得状況確認表（共通教育科目，一般学生）'!AH23+AG83","v":0},{"$f":"'単位修得状況確認表（共通教育科目，一般学生）'!AI23+AH83","v":0},{"$f":"'単位修得状況確認表（共通教育科目，一般学生）'!AJ23+AI83","v":0},{"$f":"'単位修得状況確認表（共通教育科目，一般学生）'!AK23+AJ83","v":0},{"$f":"'単位修得状況確認表（共通教育科目，一般学生）'!AL23+AK83","v":0},{"$f":"'単位修得状況確認表（共通教育科目，一般学生）'!AM23+AL83","v":0},{"$f":"SUM(G84,I84,K84,M84,O84,Q84,S84,U84,W84,Y84,AA84,AC84,AE84,AG84,AI84,AK84)","v":0},124,{"$f":"SUM(H84,J84,L84,N84,P84,R84,T84,V84,X84,Z84,AB84,AD84,AF84,AH84,AJ84,AL84)","v":0}]
["※","「期を増やす」欄により学年を４年間増やすことが可。",null,null,null,null,null,null,null,null,null,null,null,null,null,null,null,null,null,null,null,null,null,null,null,null,null,null,null,null,null,null,null,null,null,null,null,null,"累積GPA",null,{"$f":"IF(AM84-AM87>0,AO84/(AM84-AM87-'単位修得状況確認表（共通教育科目，一般学生）'!AN26+AM88+'単位修得状況確認表（共通教育科目，一般学生）'!AN27-AM89-'単位修得状況確認表（共通教育科目，一般学生）'!AN28),\"\")","v":""}]
[]
["①【専門教育科目】評価Pの単位数",null,null,null,null,null,null,null,null,null,null,null,null,null,null,null,null,null,null,null,null,null,null,null,null,null,null,null,null,null,null,null,null,null,null,null,null,null,{"$f":"SUM(G87:AL87)","v":0}]
["②【専門教育科目】不合格（評価F）の単位数",null,null,null,null,null,null,null,null,null,null,null,null,null,null,null,null,null,null,null,null,null,null,null,null,null,null,null,null,null,null,null,null,null,null,null,null,null,{"$f":"SUM(G88:AL88)","v":0}]
["③【専門教育科目】評価F科目の再履修での修得単位数",null,null,null,null,null,null,null,null,null,null,null,null,null,null,null,null,null,null,null,null,null,null,null,null,null,null,null,null,null,null,null,null,null,null,null,null,null,{"$f":"SUM(G89:AL89)","v":0}]

{"sheet":"累積グラフ","index":5,"n_rows":300,"n_cols":7,"rows_kept":300,"cut":false,"hidden":false,"merged":[[3,2,3,3],[3,4,3,5],[42,2,42,3],[42,4,42,5],[81,2,81,3]]}
[]
[null,"共通教育科目（必修科目）"]
[]
[null,null,"初年次教育科目",null,"ｸﾞﾛｰﾊﾞﾙ教育科目"]
[null,null,"取得単位数","累積取得単位数","取得単位数","累積取得単位数"]
[null,"1期終了時",{"$f":"SUM('単位修得状況確認表（共通教育科目，一般学生）'!H$7:H$12)","v":0},{"$f":"SUM(C$6:C6)","v":0},{"$f":"SUM('単位修得状況確認表（共通教育科目，一般学生）'!H$13:H$14)","v":0},{"$f":"SUM(E$6:E6)","v":0}]
[null,"2期終了時",{"$f":"SUM('単位修得状況確認表（共通教育科目，一般学生）'!J$7:J$12)","v":0},{"$f":"SUM(C$6:C7)","v":0},{"$f":"SUM('単位修得状況確認表（共通教育科目，一般学生）'!J$13:J$14)","v":0},{"$f":"SUM(E$6:E7)","v":0}]
[null,"3期終了時",{"$f":"SUM('単位修得状況確認表（共通教育科目，一般学生）'!L$7:L$12)","v":0},{"$f":"SUM(C$6:C8)","v":0},{"$f":"SUM('単位修得状況確認表（共通教育科目，一般学生）'!L$13:L$14)","v":0},{"$f":"SUM(E$6:E8)","v":0}]
[null,"4期終了時",{"$f":"SUM('単位修得状況確認表（共通教育科目，一般学生）'!N$7:N$12)","v":0},{"$f":"SUM(C$6:C9)","v":0},{"$f":"SUM('単位修得状況確認表（共通教育科目，一般学生）'!N$13:N$14)","v":0},{"$f":"SUM(E$6:E9)","v":0}]
[null,"5期終了時",{"$f":"SUM('単位修得状況確認表（共通教育科目，一般学生）'!P$7:P$12)","v":0},{"$f":"SUM(C$6:C10)","v":0},{"$f":"SUM('単位修得状況確認表（共通教育科目，一般学生）'!P$13:P$14)","v":0},{"$f":"SUM(E$6:E10)","v":0}]
[null,"6期終了時",{"$f":"SUM('単位修得状況確認表（共通教育科目，一般学生）'!R$7:R$12)","v":0},{"$f":"SUM(C$6:C11)","v":0},{"$f":"SUM('単位修得状況確認表（共通教育科目，一般学生）'!R$13:R$14)","v":0},{"$f":"SUM(E$6:E11)","v":0}]
[null,"7期終了時",{"$f":"SUM('単位修得状況確認表（共通教育科目，一般学生）'!T$7:T$12)","v":0},{"$f":"SUM(C$6:C12)","v":0},{"$f":"SUM('単位修得状況確認表（共通教育科目，一般学生）'!T$13:T$14)","v":0},{"$f":"SUM(E$6:E12)","v":0}]
[null,"8期終了時",{"$f":"SUM('単位修得状況確認表（共通教育科目，一般学生）'!V$7:V$12)","v":0},{"$f":"SUM(C$6:C13)","v":0},{"$f":"SUM('単位修得状況確認表（共通教育科目，一般学生）'!V$13:V$14)","v":0},{"$f":"SUM(E$6:E13)","v":0}]
[null,"9期終了時",{"$f":"SUM('単位修得状況確認表（共通教育科目，一般学生）'!X$7:X$12)","v":0},{"$f":"IF(SUM($C258:$C$265)=0,\"\",SUM(C$6:C14))","v":""},{"$f":"SUM('単位修得状況確認表（共通教育科目，一般学生）'!X$13:X$14)","v":0},{"$f":"IF(SUM($C258:$C$265)=0,\"\",SUM(E$6:E14))","v":""}]
[null,"10期終了時",{"$f":"SUM('単位修得状況確認表（共通教育科目，一般学生）'!Z$7:Z$12)","v":0},{"$f":"IF(SUM($C259:$C$265)=0,\"\",SUM(C$6:C15))","v":""},{"$f":"SUM('単位修得状況確認表（共通教育科目，一般学生）'!Z$13:Z$14)","v":0},{"$f":"IF(SUM($C259:$C$265)=0,\"\",SUM(E$6:E15))","v":""}]
[null,"11期終了時",{"$f":"SUM('単位修得状況確認表（共通教育科目，一般学生）'!AB$7:AB$12)","v":0},{"$f":"IF(SUM($C260:$C$265)=0,\"\",SUM(C$6:C16))","v":""},{"$f":"SUM('単位修得状況確認表（共通教育科目，一般学生）'!AB$13:AB$14)","v":0},{"$f":"IF(SUM($C260:$C$265)=0,\"\",SUM(E$6:E16))","v":""}]
[null,"12期終了時",{"$f":"SUM('単位修得状況確認表（共通教育科目，一般学生）'!AD$7:AD$12)","v":0},{"$f":"IF(SUM($C261:$C$265)=0,\"\",SUM(C$6:C17))","v":""},{"$f":"SUM('単位修得状況確認表（共通教育科目，一般学生）'!AD$13:AD$14)","v":0},{"$f":"IF(SUM($C261:$C$265)=0,\"\",SUM(E$6:E17))","v":""}]
[null,"13期終了時",{"$f":"SUM('単位修得状況確認表（共通教育科目，一般学生）'!AF$7:AF$12)","v":0},{"$f":"IF(SUM($C262:$C$265)=0,\"\",SUM(C$6:C18))","v":""},{"$f":"SUM('単位修得状況確認表（共通教育科目，一般学生）'!AF$13:AF$14)","v":0},{"$f":"IF(SUM($C262:$C$265)=0,\"\",SUM(E$6:E18))","v":""}]
[null,"14期終了時",{"$f":"SUM('単位修得状況確認表（共通教育科目，一般学生）'!AH$7:AH$12)","v":0},{"$f":"IF(SUM($C263:$C$265)=0,\"\",SUM(C$6:C19))","v":""},{"$f":"SUM('単位修得状況確認表（共通教育科目，一般学生）'!AH$13:AH$14)","v":0},{"$f":"IF(SUM($C263:$C$265)=0,\"\",SUM(E$6:E19))","v":""}]
[null,"15期終了時",{"$f":"SUM('単位修得状況確認表（共通教育科目，一般学生）'!AJ$7:AJ$12)","v":0},{"$f":"IF(SUM($C264:$C$265)=0,\"\",SUM(C$6:C20))","v":""},{"$f":"SUM('単位修得状況確認表（共通教育科目，一般学生）'!AJ$13:AJ$14)","v":0},{"$f":"IF(SUM($C264:$C$265)=0,\"\",SUM(E$6:E20))","v":""}]
[null,"16期終了時",{"$f":"SUM('単位修得状況確認表（共通教育科目，一般学生）'!AL$7:AL$12)","v":0},{"$f":"IF(SUM($C265:$C$265)=0,\"\",SUM(C$6:C21))","v":""},{"$f":"SUM('単位修得状況確認表（共通教育科目，一般学生）'!AL$13:AL$14)","v":0},{"$f":"IF(SUM($C265:$C$265)=0,\"\",SUM(E$6:E21))","v":""}]
[]
[]
[]
[]
[]
[]
[]
[]
[]
[]
[]
[]
[]
[]
[]
[]
[]
[]
[]
[null,"共通教育科目（選択必修科目）"]
[]
[null,null,"教養教育科目",null,"教養活用科目"]
[null,null,"取得単位数","累積取得単位数","取得単位数","累積取得単位数"]
[null,"1期終了時",{"$f":"SUM('単位修得状況確認表（共通教育科目，一般学生）'!H$16:H$19)","v":0},{"$f":"SUM(C$45:C45)","v":0},{"$f":"SUM('単位修得状況確認表（共通教育科目，一般学生）'!H$20:H$21)","v":0},{"$f":"SUM(E$45:E45)","v":0}]
[null,"2期終了時",{"$f":"SUM('単位修得状況確認表（共通教育科目，一般学生）'!J$16:J$19)","v":0},{"$f":"SUM(C$45:C46)","v":0},{"$f":"SUM('単位修得状況確認表（共通教育科目，一般学生）'!J$20:J$21)","v":0},{"$f":"SUM(E$45:E46)","v":0}]
[null,"3期終了時",{"$f":"SUM('単位修得状況確認表（共通教育科目，一般学生）'!L$16:L$19)","v":0},{"$f":"SUM(C$45:C47)","v":0},{"$f":"SUM('単位修得状況確認表（共通教育科目，一般学生）'!L$20:L$21)","v":0},{"$f":"SUM(E$45:E47)","v":0}]
[null,"4期終了時",{"$f":"SUM('単位修得状況確認表（共通教育科目，一般学生）'!N$16:N$19)","v":0},{"$f":"SUM(C$45:C48)","v":0},{"$f":"SUM('単位修得状況確認表（共通教育科目，一般学生）'!N$20:N$21)","v":0},{"$f":"SUM(E$45:E48)","v":0}]
[null,"5期終了時",{"$f":"SUM('単位修得状況確認表（共通教育科目，一般学生）'!P$16:P$19)","v":0},{"$f":"SUM(C$45:C49)","v":0},{"$f":"SUM('単位修得状況確認表（共通教育科目，一般学生）'!P$20:P$21)","v":0},{"$f":"SUM(E$45:E49)","v":0}]
[null,"6期終了時",{"$f":"SUM('単位修得状況確認表（共通教育科目，一般学生）'!R$16:R$19)","v":0},{"$f":"SUM(C$45:C50)","v":0},{"$f":"SUM('単位修得状況確認表（共通教育科目，一般学生）'!R$20:R$21)","v":0},{"$f":"SUM(E$45:E50)","v":0}]
[null,"7期終了時",{"$f":"SUM('単位修得状況確認表（共通教育科目，一般学生）'!T$16:T$19)","v":0},{"$f":"SUM(C$45:C51)","v":0},{"$f":"SUM('単位修得状況確認表（共通教育科目，一般学生）'!T$20:T$21)","v":0},{"$f":"SUM(E$45:E51)","v":0}]
[null,"8期終了時",{"$f":"SUM('単位修得状況確認表（共通教育科目，一般学生）'!V$16:V$19)","v":0},{"$f":"SUM(C$45:C52)","v":0},{"$f":"SUM('単位修得状況確認表（共通教育科目，一般学生）'!V$20:V$21)","v":0},{"$f":"SUM(E$45:E52)","v":0}]
[null,"9期終了時",{"$f":"SUM('単位修得状況確認表（共通教育科目，一般学生）'!X$16:X$19)","v":0},{"$f":"IF(SUM($C258:$C$265)=0,\"\",SUM(C$45:C53))","v":""},{"$f":"SUM('単位修得状況確認表（共通教育科目，一般学生）'!X$20:X$21)","v":0},{"$f":"IF(SUM($C258:$C$265)=0,\"\",SUM(E$45:E53))","v":""}]
[null,"10期終了時",{"$f":"SUM('単位修得状況確認表（共通教育科目，一般学生）'!Z$16:Z$19)","v":0},{"$f":"IF(SUM($C259:$C$265)=0,\"\",SUM(C$45:C54))","v":""},{"$f":"SUM('単位修得状況確認表（共通教育科目，一般学生）'!Z$20:Z$21)","v":0},{"$f":"IF(SUM($C259:$C$265)=0,\"\",SUM(E$45:E54))","v":""}]
[null,"11期終了時",{"$f":"SUM('単位修得状況確認表（共通教育科目，一般学生）'!AB$16:AB$19)","v":0},{"$f":"IF(SUM($C260:$C$265)=0,\"\",SUM(C$45:C55))","v":""},{"$f":"SUM('単位修得状況確認表（共通教育科目，一般学生）'!AB$20:AB$21)","v":0},{"$f":"IF(SUM($C260:$C$265)=0,\"\",SUM(E$45:E55))","v":""}]
[null,"12期終了時",{"$f":"SUM('単位修得状況確認表（共通教育科目，一般学生）'!AD$16:AD$19)","v":0},{"$f":"IF(SUM($C261:$C$265)=0,\"\",SUM(C$45:C56))","v":""},{"$f":"SUM('単位修得状況確認表（共通教育科目，一般学生）'!AD$20:AD$21)","v":0},{"$f":"IF(SUM($C261:$C$265)=0,\"\",SUM(E$45:E56))","v":""}]
[null,"13期終了時",{"$f":"SUM('単位修得状況確認表（共通教育科目，一般学生）'!AF$16:AF$19)","v":0},{"$f":"IF(SUM($C262:$C$265)=0,\"\",SUM(C$45:C57))","v":""},{"$f":"SUM('単位修得状況確認表（共通教育科目，一般学生）'!AF$20:AF$21)","v":0},{"$f":"IF(SUM($C262:$C$265)=0,\"\",SUM(E$45:E57))","v":""}]
[null,"14期終了時",{"$f":"SUM('単位修得状況確認表（共通教育科目，一般学生）'!AH$16:AH$19)","v":0},{"$f":"IF(SUM($C263:$C$265)=0,\"\",SUM(C$45:C58))","v":""},{"$f":"SUM('単位修得状況確認表（共通教育科目，一般学生）'!AH$20:AH$21)","v":0},{"$f":"IF(SUM($C263:$C$265)=0,\"\",SUM(E$45:E58))","v":""}]
[null,"15期終了時",{"$f":"SUM('単位修得状況確認表（共通教育科目，一般学生）'!AJ$16:AJ$19)","v":0},{"$f":"IF(SUM($C264:$C$265)=0,\"\",SUM(C$45:C59))","v":""},{"$f":"SUM('単位修得状況確認表（共通教育科目，一般学生）'!AJ$20:AJ$21)","v":0},{"$f":"IF(SUM($C264:$C$265)=0,\"\",SUM(E$45:E59))","v":""}]
[null,"16期終了時",{"$f":"SUM('単位修得状況確認表（共通教育科目，一般学生）'!AL$16:AL$19)","v":0},{"$f":"IF(SUM($C265:$C$265)=0,\"\",SUM(C$45:C60))","v":""},{"$f":"SUM('単位修得状況確認表（共通教育科目，一般学生）'!AL$20:AL$21)","v":0},{"$f":"IF(SUM($C265:$C$265)=0,\"\",SUM(E$45:E60))","v":""}]
[]
[]
[]
[]
[]
[]
[]
[]
[]
[]
[]
[]
[]
[]
[]
[]
[]
[]
[]
[null,"専門教育科目（基礎教育科目）"]
[]
[null,null,"必修科目"]
[null,null,"取得単位数","累積取得単位数"]
[null,"1期終了時",{"$f":"'単位修得状況確認表（専門教育科目）'!G$13","v":0},{"$f":"SUM(C$84:C84)","v":0}]
[null,"2期終了時",{"$f":"'単位修得状況確認表（専門教育科目）'!I$13","v":0},{"$f":"SUM(C$84:C85)","v":0}]
[null,"3期終了時",{"$f":"'単位修得状況確認表（専門教育科目）'!K$13","v":0},{"$f":"SUM(C$84:C86)","v":0}]
[null,"4期終了時",{"$f":"'単位修得状況確認表（専門教育科目）'!M$13","v":0},{"$f":"SUM(C$84:C87)","v":0}]
[null,"5期終了時",{"$f":"'単位修得状況確認表（専門教育科目）'!O$13","v":0},{"$f":"SUM(C$84:C88)","v":0}]
[null,"6期終了時",{"$f":"'単位修得状況確認表（専門教育科目）'!Q$13","v":0},{"$f":"SUM(C$84:C89)","v":0}]
[null,"7期終了時",{"$f":"'単位修得状況確認表（専門教育科目）'!S$13","v":0},{"$f":"SUM(C$84:C90)","v":0}]
[null,"8期終了時",{"$f":"'単位修得状況確認表（専門教育科目）'!U$13","v":0},{"$f":"SUM(C$84:C91)","v":0}]
[null,"9期終了時",{"$f":"'単位修得状況確認表（専門教育科目）'!W$13","v":0},{"$f":"IF(SUM($C258:$C$265)=0,\"\",SUM(C$84:C92))","v":""}]
[null,"10期終了時",{"$f":"'単位修得状況確認表（専門教育科目）'!Y$13","v":0},{"$f":"IF(SUM($C259:$C$265)=0,\"\",SUM(C$84:C93))","v":""}]
[null,"11期終了時",{"$f":"'単位修得状況確認表（専門教育科目）'!AA$13","v":0},{"$f":"IF(SUM($C260:$C$265)=0,\"\",SUM(C$84:C94))","v":""}]
[null,"12期終了時",{"$f":"'単位修得状況確認表（専門教育科目）'!AC$13","v":0},{"$f":"IF(SUM($C261:$C$265)=0,\"\",SUM(C$84:C95))","v":""}]
[null,"13期終了時",{"$f":"'単位修得状況確認表（専門教育科目）'!AE$13","v":0},{"$f":"IF(SUM($C262:$C$265)=0,\"\",SUM(C$84:C96))","v":""}]
[null,"14期終了時",{"$f":"'単位修得状況確認表（専門教育科目）'!AG$13","v":0},{"$f":"IF(SUM($C263:$C$265)=0,\"\",SUM(C$84:C97))","v":""}]
[null,"15期終了時",{"$f":"'単位修得状況確認表（専門教育科目）'!AI$13","v":0},{"$f":"IF(SUM($C264:$C$265)=0,\"\",SUM(C$84:C98))","v":""}]
[null,"16期終了時",{"$f":"'単位修得状況確認表（専門教育科目）'!AK$13","v":0},{"$f":"IF(SUM($C265:$C$265)=0,\"\",SUM(C$84:C99))","v":""}]
[]
[]
[]
[]
[]
[]
[]
[null,"専門教育科目（必修科目）"]
[]
[null,null,"取得単位数","累積取得単位数"]
[null,"1期終了時",{"$f":"'単位修得状況確認表（専門教育科目）'!G$42","v":0},{"$f":"SUM(C$110:C110)","v":0}]
[null,"2期終了時",{"$f":"'単位修得状況確認表（専門教育科目）'!I$42","v":0},{"$f":"SUM(C$110:C111)","v":0}]
[null,"3期終了時",{"$f":"'単位修得状況確認表（専門教育科目）'!K$42","v":0},{"$f":"SUM(C$110:C112)","v":0}]
[null,"4期終了時",{"$f":"'単位修得状況確認表（専門教育科目）'!M$42","v":0},{"$f":"SUM(C$110:C113)","v":0}]
[null,"5期終了時",{"$f":"'単位修得状況確認表（専門教育科目）'!O$42","v":0},{"$f":"SUM(C$110:C114)","v":0}]
[null,"6期終了時",{"$f":"'単位修得状況確認表（専門教育科目）'!Q$42","v":0},{"$f":"SUM(C$110:C115)","v":0}]
[null,"7期終了時",{"$f":"'単位修得状況確認表（専門教育科目）'!S$42","v":0},{"$f":"SUM(C$110:C116)","v":0}]
[null,"8期終了時",{"$f":"'単位修得状況確認表（専門教育科目）'!U$42","v":0},{"$f":"SUM(C$110:C117)","v":0}]
[null,"9期終了時",{"$f":"'単位修得状況確認表（専門教育科目）'!W$42","v":0},{"$f":"IF(SUM($C258:$C$265)=0,\"\",SUM(C$110:C118))","v":""}]
[null,"10期終了時",{"$f":"'単位修得状況確認表（専門教育科目）'!Y$42","v":0},{"$f":"IF(SUM($C259:$C$265)=0,\"\",SUM(C$110:C119))","v":""}]
[null,"11期終了時",{"$f":"'単位修得状況確認表（専門教育科目）'!AA$42","v":0},{"$f":"IF(SUM($C260:$C$265)=0,\"\",SUM(C$110:C120))","v":""}]
[null,"12期終了時",{"$f":"'単位修得状況確認表（専門教育科目）'!AC$42","v":0},{"$f":"IF(SUM($C261:$C$265)=0,\"\",SUM(C$110:C121))","v":""}]
[null,"13期終了時",{"$f":"'単位修得状況確認表（専門教育科目）'!AE$42","v":0},{"$f":"IF(SUM($C262:$C$265)=0,\"\",SUM(C$110:C122))","v":""}]
[null,"14期終了時",{"$f":"'単位修得状況確認表（専門教育科目）'!AG$42","v":0},{"$f":"IF(SUM($C263:$C$265)=0,\"\",SUM(C$110:C123))","v":""}]
[null,"15期終了時",{"$f":"'単位修得状況確認表（専門教育科目）'!AI$42","v":0},{"$f":"IF(SUM($C264:$C$265)=0,\"\",SUM(C$110:C124))","v":""}]
[null,"16期終了時",{"$f":"'単位修得状況確認表（専門教育科目）'!AK$42","v":0},{"$f":"IF(SUM($C265:$C$265)=0,\"\",SUM(C$110:C125))","v":""}]
[]
[]
[]
[]
[]
[]
[]
[]
[]
[]
[]
[]
[]
[]
[]
[]
[]
[null,"専門教育科目（選択科目A群）"]
[]
[null,null,"取得単位数","累積取得単位数"]
[null,"1期終了時",{"$f":"'単位修得状況確認表（専門教育科目）'!G$50","v":0},{"$f":"SUM(C$146:C146)","v":0}]
[null,"2期終了時",{"$f":"'単位修得状況確認表（専門教育科目）'!I$50","v":0},{"$f":"SUM(C$146:C147)","v":0}]
[null,"3期終了時",{"$f":"'単位修得状況確認表（専門教育科目）'!K$50","v":0},{"$f":"SUM(C$146:C148)","v":0}]
[null,"4期終了時",{"$f":"'単位修得状況確認表（専門教育科目）'!M$50","v":0},{"$f":"SUM(C$146:C149)","v":0}]
[null,"5期終了時",{"$f":"'単位修得状況確認表（専門教育科目）'!O$50","v":0},{"$f":"SUM(C$146:C150)","v":0}]
[null,"6期終了時",{"$f":"'単位修得状況確認表（専門教育科目）'!Q$50","v":0},{"$f":"SUM(C$146:C151)","v":0}]
[null,"7期終了時",{"$f":"'単位修得状況確認表（専門教育科目）'!S$50","v":0},{"$f":"SUM(C$146:C152)","v":0}]
[null,"8期終了時",{"$f":"'単位修得状況確認表（専門教育科目）'!U$50","v":0},{"$f":"SUM(C$146:C153)","v":0}]
[null,"9期終了時",{"$f":"'単位修得状況確認表（専門教育科目）'!W$50","v":0},{"$f":"IF(SUM($C258:$C$265)=0,\"\",SUM(C$146:C154))","v":""}]
[null,"10期終了時",{"$f":"'単位修得状況確認表（専門教育科目）'!Y$50","v":0},{"$f":"IF(SUM($C259:$C$265)=0,\"\",SUM(C$146:C155))","v":""}]
[null,"11期終了時",{"$f":"'単位修得状況確認表（専門教育科目）'!AA$50","v":0},{"$f":"IF(SUM($C260:$C$265)=0,\"\",SUM(C$146:C156))","v":""}]
[null,"12期終了時",{"$f":"'単位修得状況確認表（専門教育科目）'!AC$50","v":0},{"$f":"IF(SUM($C261:$C$265)=0,\"\",SUM(C$146:C157))","v":""}]
[null,"13期終了時",{"$f":"'単位修得状況確認表（専門教育科目）'!AE$50","v":0},{"$f":"IF(SUM($C262:$C$265)=0,\"\",SUM(C$146:C158))","v":""}]
[null,"14期終了時",{"$f":"'単位修得状況確認表（専門教育科目）'!AG$50","v":0},{"$f":"IF(SUM($C263:$C$265)=0,\"\",SUM(C$146:C159))","v":""}]
[null,"15期終了時",{"$f":"'単位修得状況確認表（専門教育科目）'!AI$50","v":0},{"$f":"IF(SUM($C264:$C$265)=0,\"\",SUM(C$146:C160))","v":""}]
[null,"16期終了時",{"$f":"'単位修得状況確認表（専門教育科目）'!AK$50","v":0},{"$f":"IF(SUM($C265:$C$265)=0,\"\",SUM(C$146:C161))","v":""}]
[]
[]
[]
[]
[]
[]
[]
[null,"専門教育科目（選択科目B群）"]
[]
[null,null,"取得単位数","累積取得単位数"]
[null,"1期終了時",{"$f":"'単位修得状況確認表（専門教育科目）'!G$60","v":0},{"$f":"SUM(C$172:C172)","v":0}]
[null,"2期終了時",{"$f":"'単位修得状況確認表（専門教育科目）'!I$60","v":0},{"$f":"SUM(C$172:C173)","v":0}]
[null,"3期終了時",{"$f":"'単位修得状況確認表（専門教育科目）'!K$60","v":0},{"$f":"SUM(C$172:C174)","v":0}]
[null,"4期終了時",{"$f":"'単位修得状況確認表（専門教育科目）'!M$60","v":0},{"$f":"SUM(C$172:C175)","v":0}]
[null,"5期終了時",{"$f":"'単位修得状況確認表（専門教育科目）'!O$60","v":0},{"$f":"SUM(C$172:C176)","v":0}]
[null,"6期終了時",{"$f":"'単位修得状況確認表（専門教育科目）'!Q$60","v":0},{"$f":"SUM(C$172:C177)","v":0}]
[null,"7期終了時",{"$f":"'単位修得状況確認表（専門教育科目）'!S$60","v":0},{"$f":"SUM(C$172:C178)","v":0}]
[null,"8期終了時",{"$f":"'単位修得状況確認表（専門教育科目）'!U$60","v":0},{"$f":"SUM(C$172:C179)","v":0}]
[null,"9期終了時",{"$f":"'単位修得状況確認表（専門教育科目）'!W$60","v":0},{"$f":"IF(SUM($C258:$C$265)=0,\"\",SUM(C$172:C180))","v":""}]
[null,"10期終了時",{"$f":"'単位修得状況確認表（専門教育科目）'!Y$60","v":0},{"$f":"IF(SUM($C259:$C$265)=0,\"\",SUM(C$172:C181))","v":""}]
[null,"11期終了時",{"$f":"'単位修得状況確認表（専門教育科目）'!AA$60","v":0},{"$f":"IF(SUM($C260:$C$265)=0,\"\",SUM(C$172:C182))","v":""}]
[null,"12期終了時",{"$f":"'単位修得状況確認表（専門教育科目）'!AC$60","v":0},{"$f":"IF(SUM($C261:$C$265)=0,\"\",SUM(C$172:C183))","v":""}]
[null,"13期終了時",{"$f":"'単位修得状況確認表（専門教育科目）'!AE$60","v":0},{"$f":"IF(SUM($C262:$C$265)=0,\"\",SUM(C$172:C184))","v":""}]
[null,"14期終了時",{"$f":"'単位修得状況確認表（専門教育科目）'!AG$60","v":0},{"$f":"IF(SUM($C263:$C$265)=0,\"\",SUM(C$172:C185))","v":""}]
[null,"15期終了時",{"$f":"'単位修得状況確認表（専門教育科目）'!AI$60","v":0},{"$f":"IF(SUM($C264:$C$265)=0,\"\",SUM(C$172:C186))","v":""}]
[null,"16期終了時",{"$f":"'単位修得状況確認表（専門教育科目）'!AK$60","v":0},{"$f":"IF(SUM($C265:$C$265)=0,\"\",SUM(C$172:C187))","v":""}]
[]
[]
[]
[]
[]
[]
[]
[null,"専門教育科目（選択科目C群）"]
[]
[null,null,"取得単位数","累積取得単位数"]
[null,"1期終了時",{"$f":"'単位修得状況確認表（専門教育科目）'!G$69","v":0},{"$f":"SUM(C$198:C198)","v":0}]
[null,"2期終了時",{"$f":"'単位修得状況確認表（専門教育科目）'!I$69","v":0},{"$f":"SUM(C$198:C199)","v":0}]
[null,"3期終了時",{"$f":"'単位修得状況確認表（専門教育科目）'!K$69","v":0},{"$f":"SUM(C$198:C200)","v":0}]
[null,"4期終了時",{"$f":"'単位修得状況確認表（専門教育科目）'!M$69","v":0},{"$f":"SUM(C$198:C201)","v":0}]
[null,"5期終了時",{"$f":"'単位修得状況確認表（専門教育科目）'!O$69","v":0},{"$f":"SUM(C$198:C202)","v":0}]
[null,"6期終了時",{"$f":"'単位修得状況確認表（専門教育科目）'!Q$69","v":0},{"$f":"SUM(C$198:C203)","v":0}]
[null,"7期終了時",{"$f":"'単位修得状況確認表（専門教育科目）'!S$69","v":0},{"$f":"SUM(C$198:C204)","v":0}]
[null,"8期終了時",{"$f":"'単位修得状況確認表（専門教育科目）'!U$69","v":0},{"$f":"SUM(C$198:C205)","v":0}]
[null,"9期終了時",{"$f":"'単位修得状況確認表（専門教育科目）'!W$69","v":0},{"$f":"IF(SUM($C258:$C$265)=0,\"\",SUM(C$198:C206))","v":""}]
[null,"10期終了時",{"$f":"'単位修得状況確認表（専門教育科目）'!Y$69","v":0},{"$f":"IF(SUM($C259:$C$265)=0,\"\",SUM(C$198:C207))","v":""}]
[null,"11期終了時",{"$f":"'単位修得状況確認表（専門教育科目）'!AA$69","v":0},{"$f":"IF(SUM($C260:$C$265)=0,\"\",SUM(C$198:C208))","v":""}]
[null,"12期終了時",{"$f":"'単位修得状況確認表（専門教育科目）'!AC$69","v":0},{"$f":"IF(SUM($C261:$C$265)=0,\"\",SUM(C$198:C209))","v":""}]
[null,"13期終了時",{"$f":"'単位修得状況確認表（専門教育科目）'!AE$69","v":0},{"$f":"IF(SUM($C262:$C$265)=0,\"\",SUM(C$198:C210))","v":""}]
[null,"14期終了時",{"$f":"'単位修得状況確認表（専門教育科目）'!AG$69","v":0},{"$f":"IF(SUM($C263:$C$265)=0,\"\",SUM(C$198:C211))","v":""}]
[null,"15期終了時",{"$f":"'単位修得状況確認表（専門教育科目）'!AI$69","v":0},{"$f":"IF(SUM($C264:$C$265)=0,\"\",SUM(C$198:C212))","v":""}]
[null,"16期終了時",{"$f":"'単位修得状況確認表（専門教育科目）'!AK$69","v":0},{"$f":"IF(SUM($C265:$C$265)=0,\"\",SUM(C$198:C213))","v":""}]
[]
[]
[]
[]
[]
[]
[]
[null,"専門教育科目（選択科目D群）"]
[]
[null,null,"取得単位数","累積取得単位数"]
[null,"1期終了時",{"$f":"'単位修得状況確認表（専門教育科目）'!G$81","v":0},{"$f":"SUM(C$224:C224)","v":0}]
[null,"2期終了時",{"$f":"'単位修得状況確認表（専門教育科目）'!I$81","v":0},{"$f":"SUM(C$224:C225)","v":0}]
[null,"3期終了時",{"$f":"'単位修得状況確認表（専門教育科目）'!K$81","v":0},{"$f":"SUM(C$224:C226)","v":0}]
[null,"4期終了時",{"$f":"'単位修得状況確認表（専門教育科目）'!M$81","v":0},{"$f":"SUM(C$224:C227)","v":0}]
[null,"5期終了時",{"$f":"'単位修得状況確認表（専門教育科目）'!O$81","v":0},{"$f":"SUM(C$224:C228)","v":0}]
[null,"6期終了時",{"$f":"'単位修得状況確認表（専門教育科目）'!Q$81","v":0},{"$f":"SUM(C$224:C229)","v":0}]
[null,"7期終了時",{"$f":"'単位修得状況確認表（専門教育科目）'!S$81","v":0},{"$f":"SUM(C$224:C230)","v":0}]
[null,"8期終了時",{"$f":"'単位修得状況確認表（専門教育科目）'!U$81","v":0},{"$f":"SUM(C$224:C231)","v":0}]
[null,"9期終了時",{"$f":"'単位修得状況確認表（専門教育科目）'!W$81","v":0},{"$f":"IF(SUM($C258:$C$265)=0,\"\",SUM(C$224:C232))","v":""}]
[null,"10期終了時",{"$f":"'単位修得状況確認表（専門教育科目）'!Y$81","v":0},{"$f":"IF(SUM($C259:$C$265)=0,\"\",SUM(C$224:C233))","v":""}]
[null,"11期終了時",{"$f":"'単位修得状況確認表（専門教育科目）'!AA$81","v":0},{"$f":"IF(SUM($C260:$C$265)=0,\"\",SUM(C$224:C234))","v":""}]
[null,"12期終了時",{"$f":"'単位修得状況確認表（専門教育科目）'!AC$81","v":0},{"$f":"IF(SUM($C261:$C$265)=0,\"\",SUM(C$224:C235))","v":""}]
[null,"13期終了時",{"$f":"'単位修得状況確認表（専門教育科目）'!AE$81","v":0},{"$f":"IF(SUM($C262:$C$265)=0,\"\",SUM(C$224:C236))","v":""}]
[null,"14期終了時",{"$f":"'単位修得状況確認表（専門教育科目）'!AG$81","v":0},{"$f":"IF(SUM($C263:$C$265)=0,\"\",SUM(C$224:C237))","v":""}]
[null,"15期終了時",{"$f":"'単位修得状況確認表（専門教育科目）'!AI$81","v":0},{"$f":"IF(SUM($C264:$C$265)=0,\"\",SUM(C$224:C238))","v":""}]
[null,"16期終了時",{"$f":"'単位修得状況確認表（専門教育科目）'!AK$81","v":0},{"$f":"IF(SUM($C265:$C$265)=0,\"\",SUM(C$224:C239))","v":""}]
[]
[]
[]
[]
[]
[]
[]
[null,"累積単位数"]
[]
[null,null,"取得単位数","累積取得単位数"]
[null,"1期終了時",{"$f":"SUM(C6,E6,C45,E45,C84,C110,C146,C172,C198,C224)","v":0},{"$f":"SUM(C$250:C250)","v":0}]
[null,"2期終了時",0,{"$f":"SUM(C$250:C251)","v":0}]
[null,"3期終了時",0,{"$f":"SUM(C$250:C252)","v":0}]
[null,"4期終了時",0,{"$f":"SUM(C$250:C253)","v":0}]
[null,"5期終了時",0,{"$f":"SUM(C$250:C254)","v":0}]
[null,"6期終了時",0,{"$f":"SUM(C$250:C255)","v":0}]
[null,"7期終了時",0,{"$f":"SUM(C$250:C256)","v":0}]
[null,"8期終了時",0,{"$f":"SUM(C$250:C257)","v":0}]
[null,"9期終了時",{"$f":"SUM(C14,E14,C53,E53,C92,C118,C154,C180,C206,C232)","v":0},{"$f":"IF(SUM($C258:$C$265)=0,\"\",SUM(C$250:C258))","v":""}]
[null,"10期終了時",0,{"$f":"IF(SUM($C259:$C$265)=0,\"\",SUM(C$250:C259))","v":""}]
[null,"11期終了時",0,{"$f":"IF(SUM($C260:$C$265)=0,\"\",SUM(C$250:C260))","v":""}]
[null,"12期終了時",0,{"$f":"IF(SUM($C261:$C$265)=0,\"\",SUM(C$250:C261))","v":""}]
[null,"13期終了時",0,{"$f":"IF(SUM($C262:$C$265)=0,\"\",SUM(C$250:C262))","v":""}]
[null,"14期終了時",0,{"$f":"IF(SUM($C263:$C$265)=0,\"\",SUM(C$250:C263))","v":""}]
[null,"15期終了時",0,{"$f":"IF(SUM($C264:$C$265)=0,\"\",SUM(C$250:C264))","v":""}]
[null,"16期終了時",0,{"$f":"IF(SUM($C265:$C$265)=0,\"\",SUM(C$250:C265))","v":""}]
[]
[]
[]
[]
[]
[]
[]
[]
[]
[]
[]
[]
[]
[]
[]
[]
[null,"GPA"]
[]
[null,null,"累積GP","累積GPA","GPA累積単位数","累積P","累積F"]
[null,"1期終了時",{"$f":"'単位修得状況確認表（共通教育科目，一般学生）'!I$23+'単位修得状況確認表（専門教育科目）'!H$83","v":0},{"$f":"IF(E285=0,\"\",C285/E285)","v":""},{"$f":"D250-F285+G285","v":0},{"$f":"'単位修得状況確認表（共通教育科目，一般学生）'!H$26+'単位修得状況確認表（専門教育科目）'!G$87","v":0},{"$f":"'単位修得状況確認表（共通教育科目，一般学生）'!H$27+'単位修得状況確認表（専門教育科目）'!G$88-'単位修得状況確認表（共通教育科目，一般学生）'!H$28-'単位修得状況確認表（専門教育科目）'!G$89","v":0}]
[null,"2期終了時",{"$f":"C285+'単位修得状況確認表（共通教育科目，一般学生）'!K$23+'単位修得状況確認表（専門教育科目）'!J$83","v":0},"",0,{"$f":"F285+'単位修得状況確認表（共通教育科目，一般学生）'!J$26+'単位修得状況確認表（専門教育科目）'!I$87","v":0},{"$f":"G285+'単位修得状況確認表（共通教育科目，一般学生）'!J$27+'単位修得状況確認表（専門教育科目）'!I$88-'単位修得状況確認表（共通教育科目，一般学生）'!J$28-'単位修得状況確認表（専門教育科目）'!I$89","v":0}]
[null,"3期終了時",{"$f":"C286+'単位修得状況確認表（共通教育科目，一般学生）'!M$23+'単位修得状況確認表（専門教育科目）'!L$83","v":0},"",0,{"$f":"F286+'単位修得状況確認表（共通教育科目，一般学生）'!L$26+'単位修得状況確認表（専門教育科目）'!K$87","v":0},{"$f":"G286+'単位修得状況確認表（共通教育科目，一般学生）'!L$27+'単位修得状況確認表（専門教育科目）'!K$88-'単位修得状況確認表（共通教育科目，一般学生）'!L$28-'単位修得状況確認表（専門教育科目）'!K$89","v":0}]
[null,"4期終了時",{"$f":"C287+'単位修得状況確認表（共通教育科目，一般学生）'!O$23+'単位修得状況確認表（専門教育科目）'!N$83","v":0},"",0,{"$f":"F287+'単位修得状況確認表（共通教育科目，一般学生）'!N$26+'単位修得状況確認表（専門教育科目）'!M$87","v":0},{"$f":"G287+'単位修得状況確認表（共通教育科目，一般学生）'!N$27+'単位修得状況確認表（専門教育科目）'!M$88-'単位修得状況確認表（共通教育科目，一般学生）'!N$28-'単位修得状況確認表（専門教育科目）'!M$89","v":0}]
[null,"5期終了時",{"$f":"C288+'単位修得状況確認表（共通教育科目，一般学生）'!Q$23+'単位修得状況確認表（専門教育科目）'!P$83","v":0},"",0,{"$f":"F288+'単位修得状況確認表（共通教育科目，一般学生）'!P$26+'単位修得状況確認表（専門教育科目）'!O$87","v":0},{"$f":"G288+'単位修得状況確認表（共通教育科目，一般学生）'!P$27+'単位修得状況確認表（専門教育科目）'!O$88-'単位修得状況確認表（共通教育科目，一般学生）'!P$28-'単位修得状況確認表（専門教育科目）'!O$89","v":0}]
[null,"6期終了時",{"$f":"C289+'単位修得状況確認表（共通教育科目，一般学生）'!S$23+'単位修得状況確認表（専門教育科目）'!R$83","v":0},"",0,{"$f":"F289+'単位修得状況確認表（共通教育科目，一般学生）'!R$26+'単位修得状況確認表（専門教育科目）'!Q$87","v":0},{"$f":"G289+'単位修得状況確認表（共通教育科目，一般学生）'!R$27+'単位修得状況確認表（専門教育科目）'!Q$88-'単位修得状況確認表（共通教育科目，一般学生）'!R$28-'単位修得状況確認表（専門教育科目）'!Q$89","v":0}]
[null,"7期終了時",{"$f":"C290+'単位修得状況確認表（共通教育科目，一般学生）'!U$23+'単位修得状況確認表（専門教育科目）'!T$83","v":0},"",0,{"$f":"F290+'単位修得状況確認表（共通教育科目，一般学生）'!T$26+'単位修得状況確認表（専門教育科目）'!S$87","v":0},{"$f":"G290+'単位修得状況確認表（共通教育科目，一般学生）'!T$27+'単位修得状況確認表（専門教育科目）'!S$88-'単位修得状況確認表（共通教育科目，一般学生）'!T$28-'単位修得状況確認表（専門教育科目）'!S$89","v":0}]
[null,"8期終了時",{"$f":"C291+'単位修得状況確認表（共通教育科目，一般学生）'!W$23+'単位修得状況確認表（専門教育科目）'!V$83","v":0},"",0,{"$f":"F291+'単位修得状況確認表（共通教育科目，一般学生）'!V$26+'単位修得状況確認表（専門教育科目）'!U$87","v":0},{"$f":"G291+'単位修得状況確認表（共通教育科目，一般学生）'!V$27+'単位修得状況確認表（専門教育科目）'!U$88-'単位修得状況確認表（共通教育科目，一般学生）'!V$28-'単位修得状況確認表（専門教育科目）'!U$89","v":0}]
[null,"9期終了時",{"$f":"C292+'単位修得状況確認表（共通教育科目，一般学生）'!Y$23+'単位修得状況確認表（専門教育科目）'!X$83","v":0},{"$f":"IF(OR(E293=0,E293=\"\"),\"\",C293/E293)","v":""},{"$f":"IF(D258=\"\",\"\",D258-F293+G293)","v":""},{"$f":"F292+'単位修得状況確認表（共通教育科目，一般学生）'!X$26+'単位修得状況確認表（専門教育科目）'!W$87","v":0},{"$f":"G292+'単位修得状況確認表（共通教育科目，一般学生）'!X$27+'単位修得状況確認表（専門教育科目）'!W$88-'単位修得状況確認表（共通教育科目，一般学生）'!X$28-'単位修得状況確認表（専門教育科目）'!W$89","v":0}]
[null,"10期終了時",{"$f":"C293+'単位修得状況確認表（共通教育科目，一般学生）'!AA$23+'単位修得状況確認表（専門教育科目）'!Z$83","v":0},{"$f":"IF(OR(E294=0,E294=\"\"),\"\",C294/E294)","v":""},{"$f":"IF(D259=\"\",\"\",D259-F294+G294)","v":""},{"$f":"F293+'単位修得状況確認表（共通教育科目，一般学生）'!Z$26+'単位修得状況確認表（専門教育科目）'!Y$87","v":0},{"$f":"G293+'単位修得状況確認表（共通教育科目，一般学生）'!Z$27+'単位修得状況確認表（専門教育科目）'!Y$88-'単位修得状況確認表（共通教育科目，一般学生）'!Z$28-'単位修得状況確認表（専門教育科目）'!Y$89","v":0}]
[null,"11期終了時",{"$f":"C294+'単位修得状況確認表（共通教育科目，一般学生）'!AC$23+'単位修得状況確認表（専門教育科目）'!AB$83","v":0},"","",{"$f":"F294+'単位修得状況確認表（共通教育科目，一般学生）'!AB$26+'単位修得状況確認表（専門教育科目）'!AA$87","v":0},{"$f":"G294+'単位修得状況確認表（共通教育科目，一般学生）'!AB$27+'単位修得状況確認表（専門教育科目）'!AA$88-'単位修得状況確認表（共通教育科目，一般学生）'!AB$28-'単位修得状況確認表（専門教育科目）'!AA$89","v":0}]
[null,"12期終了時",{"$f":"C295+'単位修得状況確認表（共通教育科目，一般学生）'!AE$23+'単位修得状況確認表（専門教育科目）'!AD$83","v":0},"","",{"$f":"F295+'単位修得状況確認表（共通教育科目，一般学生）'!AD$26+'単位修得状況確認表（専門教育科目）'!AC$87","v":0},{"$f":"G295+'単位修得状況確認表（共通教育科目，一般学生）'!AD$27+'単位修得状況確認表（専門教育科目）'!AC$88-'単位修得状況確認表（共通教育科目，一般学生）'!AD$28-'単位修得状況確認表（専門教育科目）'!AC$89","v":0}]
[null,"13期終了時",{"$f":"C296+'単位修得状況確認表（共通教育科目，一般学生）'!AG$23+'単位修得状況確認表（専門教育科目）'!AF$83","v":0},"","",{"$f":"F296+'単位修得状況確認表（共通教育科目，一般学生）'!AF$26+'単位修得状況確認表（専門教育科目）'!AE$87","v":0},{"$f":"G296+'単位修得状況確認表（共通教育科目，一般学生）'!AF$27+'単位修得状況確認表（専門教育科目）'!AE$88-'単位修得状況確認表（共通教育科目，一般学生）'!AF$28-'単位修得状況確認表（専門教育科目）'!AE$89","v":0}]
[null,"14期終了時",{"$f":"C297+'単位修得状況確認表（共通教育科目，一般学生）'!AI$23+'単位修得状況確認表（専門教育科目）'!AH$83","v":0},"","",{"$f":"F297+'単位修得状況確認表（共通教育科目，一般学生）'!AH$26+'単位修得状況確認表（専門教育科目）'!AG$87","v":0},{"$f":"G297+'単位修得状況確認表（共通教育科目，一般学生）'!AH$27+'単位修得状況確認表（専門教育科目）'!AG$88-'単位修得状況確認表（共通教育科目，一般学生）'!AH$28-'単位修得状況確認表（専門教育科目）'!AG$89","v":0}]
[null,"15期終了時",{"$f":"C298+'単位修得状況確認表（共通教育科目，一般学生）'!AK$23+'単位修得状況確認表（専門教育科目）'!AJ$83","v":0},"","",{"$f":"F298+'単位修得状況確認表（共通教育科目，一般学生）'!AJ$26+'単位修得状況確認表（専門教育科目）'!AI$87","v":0},{"$f":"G298+'単位修得状況確認表（共通教育科目，一般学生）'!AJ$27+'単位修得状況確認表（専門教育科目）'!AI$88-'単位修得状況確認表（共通教育科目，一般学生）'!AJ$28-'単位修得状況確認表（専門教育科目）'!AI$89","v":0}]
[null,"16期終了時",{"$f":"C299+'単位修得状況確認表（共通教育科目，一般学生）'!AM$23+'単位修得状況確認表（専門教育科目）'!AL$83","v":0},"","",{"$f":"F299+'単位修得状況確認表（共通教育科目，一般学生）'!AL$26+'単位修得状況確認表（専門教育科目）'!AK$87","v":0},{"$f":"G299+'単位修得状況確認表（共通教育科目，一般学生）'!AL$27+'単位修得状況確認表（専門教育科目）'!AK$88-'単位修得状況確認表（共通教育科目，一般学生）'!AL$28-'単位修得状況確認表（専門教育科目）'!AK$89","v":0}]